Workbook

Sheet CF (hidden)
B2: CONDITIONAL FORMATTING MAP
F3: =INDEX(dms_CF_3.6.5, MATCH(dms_TradingName,dms_CF_TradingName))="Y" | G3: =INDEX(dms_CF_3.6.6.1, MATCH(dms_TradingName,dms_CF_TradingName))="Y" | H3: =INDEX(dms_CF_3.6.6.2, MATCH(dms_TradingName,dms_CF_TradingName))="Y" | I3: =INDEX(dms_CF_3.6.6.3, MATCH(dms_TradingName,dms_CF_TradingName))="Y" | J3: =INDEX(dms_CF_3.6.7.1, MATCH(dms_TradingName,dms_CF_TradingName))="Y" | K3: =INDEX(dms_CF_3.6.7.2, MATCH(dms_TradingName,dms_CF_TradingName))="Y" | L3: =INDEX(dms_CF_3.6.7.3, MATCH(dms_TradingName,dms_CF_TradingName))="Y" | M3: =INDEX(dms_CF_3.6.7.4, MATCH(dms_TradingName,dms_CF_TradingName))="Y" | N3: =INDEX(dms_CF_6.6.1, MATCH(dms_TradingName,dms_CF_TradingName))="Y" | O3: =INDEX(dms_CF_6.8, MATCH(dms_TradingName,dms_CF_TradingName))="Y" | P3: =INDEX(dms_CF_7.12, MATCH(dms_TradingName,dms_CF_TradingName))="Y" | Q3: =INDEX(dms_CF_8.1_A, MATCH(dms_TradingName,dms_CF_TradingName))="Y" | R3: =INDEX(dms_CF_8.1_B, MATCH(dms_TradingName,dms_CF_TradingName))="Y" | S3: =INDEX(dms_CF_8.1_Neg, MATCH(dms_TradingName,dms_CF_TradingName))="Y"
B4: dms_CF_TradingName | C4: JurisdictionList | D4: Sector | E4: Segment | F4: dms_CF_3.6.5 | G4: dms_CF_3.6.6.1 | H4: dms_CF_3.6.6.2 | I4: dms_CF_3.6.6.3 | J4: dms_CF_3.6.7.1 | K4: dms_CF_3.6.7.2 | L4: dms_CF_3.6.7.3 | M4: dms_CF_3.6.7.4 | N4: dms_CF_6.6.1 | O4: dms_CF_6.8 | P4: dms_CF_7.12 | Q4: dms_CF_8.1_A | R4: dms_CF_8.1_B | S4: dms_CF_8.1_Neg | T4: Spare1 | U4: Spare2
B5: ActewAGL Distribution | C5: ACT | D5: Electricity | E5: Distribution | F5: Y | G5: N | H5: Y | I5: Y | J5: Y | K5: Y | L5: N | M5: Y | N5: N | O5: Y | P5: Y | Q5: N | R5: Y | S5: Y | T5: N | U5: N
B6: Ausgrid | C6: NSW | D6: Electricity | E6: Distribution | F6: Y | G6: N | H6: Y | I6: Y | J6: N | K6: N | L6: N | M6: Y | N6: N | O6: Y | P6: Y | Q6: N | R6: Y | S6: Y | T6: N | U6: N
B7: AusNet (D) | C7: Vic | D7: Electricity | E7: Distribution | F7: N | G7: N | H7: N | I7: N | J7: N | K7: N | L7: N | M7: N | N7: N | O7: Y | P7: N | Q7: N | R7: N | S7: Y | T7: N | U7: N
B8: AusNet (T) | C8: Vic | D8: Electricity | E8: Transmission | F8: N | G8: N | H8: N | I8: N | J8: N | K8: N | L8: N | M8: N | N8: N | O8: Y | P8: N | Q8: N | R8: N | S8: Y | T8: N | U8: N
B9: CitiPower | C9: Vic | D9: Electricity | E9: Distribution | F9: N | G9: N | H9: N | I9: N | J9: N | K9: N | L9: N | M9: N | N9: N | O9: Y | P9: N | Q9: N | R9: N | S9: Y | T9: N | U9: N
B10: Directlink | C10: Qld | D10: Electricity | E10: Transmission | F10: N | G10: N | H10: N | I10: N | J10: N | K10: N | L10: N | M10: N | N10: N | O10: Y | P10: N | Q10: N | R10: Y | S10: Y | T10: N | U10: N
B11: ElectraNet | C11: SA | D11: Electricity | E11: Transmission | F11: N | G11: N | H11: N | I11: N | J11: N | K11: N | L11: N | M11: N | N11: N | O11: Y | P11: N | Q11: N | R11: Y | S11: Y | T11: N | U11: N
B12: Endeavour Energy | C12: NSW | D12: Electricity | E12: Distribution | F12: Y | G12: N | H12: Y | I12: Y | J12: N | K12: N | L12: N | M12: Y | N12: N | O12: Y | P12: Y | Q12: N | R12: Y | S12: Y | T12: N | U12: N
B13: Energex | C13: Qld | D13: Electricity | E13: Distribution | F13: Y | G13: N | H13: N | I13: N | J13: N | K13: N | L13: N | M13: N | N13: N | O13: Y | P13: Y | Q13: N | R13: Y | S13: Y | T13: N | U13: N
B14: Ergon Energy | C14: Qld | D14: Electricity | E14: Distribution | F14: Y | G14: N | H14: N | I14: N | J14: N | K14: N | L14: N | M14: N | N14: N | O14: Y | P14: Y | Q14: N | R14: Y | S14: Y | T14: N | U14: N
B15: Essential Energy | C15: NSW | D15: Electricity | E15: Distribution | F15: Y | G15: N | H15: Y | I15: Y | J15: N | K15: N | L15: N | M15: Y | N15: N | O15: Y | P15: Y | Q15: N | R15: Y | S15: Y | T15: N | U15: N
B16: Jemena Electricity | C16: Vic | D16: Electricity | E16: Distribution | F16: N | G16: N | H16: N | I16: N | J16: N | K16: N | L16: N | M16: N | N16: N | O16: Y | P16: N | Q16: N | R16: N | S16: Y | T16: N | U16: N
B17: Murraylink | C17: SA | D17: Electricity | E17: Transmission | F17: N | G17: N | H17: N | I17: N | J17: N | K17: N | L17: N | M17: N | N17: N | O17: Y | P17: N | Q17: N | R17: Y | S17: Y | T17: N | U17: N
B18: Power and Water | C18: NT | D18: Electricity | E18: Distribution | F18: N | G18: N | H18: N | I18: N | J18: N | K18: Y | L18: N | M18: N | N18: Y | O18: Y | P18: Y | Q18: N | R18: Y | S18: Y | T18: N | U18: N
B19: Powercor Australia | C19: Vic | D19: Electricity | E19: Distribution | F19: N | G19: N | H19: N | I19: N | J19: N | K19: N | L19: N | M19: N | N19: N | O19: Y | P19: N | Q19: N | R19: N | S19: Y | T19: N | U19: N
B20: Powerlink | C20: Qld | D20: Electricity | E20: Transmission | F20: N | G20: N | H20: N | I20: N | J20: N | K20: N | L20: N | M20: N | N20: N | O20: Y | P20: N | Q20: N | R20: Y | S20: Y | T20: N | U20: N
B21: SA Power Networks | C21: SA | D21: Electricity | E21: Distribution | F21: Y | G21: N | H21: N | I21: N | J21: N | K21: N | L21: N | M21: N | N21: N | O21: Y | P21: Y | Q21: Y | R21: Y | S21: N | T21: N | U21: N
B22: TasNetworks (D) | C22: Tas | D22: Electricity | E22: Distribution | F22: Y | G22: N | H22: N | I22: N | J22: N | K22: N | L22: N | M22: N | N22: N | O22: Y | P22: Y | Q22: N | R22: Y | S22: Y | T22: N | U22: N
B23: TasNetworks (T) | C23: Tas | D23: Electricity | E23: Transmission | F23: N | G23: N | H23: N | I23: N | J23: N | K23: N | L23: N | M23: N | N23: N | O23: Y | P23: N | Q23: N | R23: Y | S23: Y | T23: N | U23: N
B24: TransGrid | C24: NSW | D24: Electricity | E24: Transmission | F24: N | G24: N | H24: N | I24: N | J24: N | K24: N | L24: N | M24: N | N24: N | O24: Y | P24: N | Q24: N | R24: Y | S24: Y | T24: N | U24: N
B25: United Energy | C25: Vic | D25: Electricity | E25: Distribution | F25: N | G25: N | H25: N | I25: N | J25: N | K25: N | L25: N | M25: N | N25: N | O25: Y | P25: N | Q25: N | R25: N | S25: Y | T25: N | U25: N

Sheet AER only (hidden)
B1: Data in these columns used for data validation and database purposes.
B2: Date last modified: | C2: 2017-01-16 | D2: added (Albury and Victora) for AGN
C3: 2016-10-17 | D3: updated TransGrid's correct legal name, corrected TasNetworks (T) to June financial year
C4: 2017-02-01 | D4: inserted Power and Water, added NRs (dms_FeederCat_1 and dms_FeederCat_2)
C5: 2017-03-03 | D5: inserted AEMO as a business | AB5: FOR ELECTRICITY BUSINESSES ONLY
C6: 2018-03-28 | D6: major changes to accommodate STPIS
C7: Template Version | D7: 5 | AB7: Feeder Types | AF7: TasNetworks (D) | AG7: MAIFI flag | AH7: Feeder Names
AB9: CBD | AC9: Urban | AD9: Short rural | AE9: long rural | AF9: EXTRA
B10: dms_TradingName_List | C10: dms_TradingNameFull_List | D10: dms_ABN_List | E10: dms_JurisdictionList | F10: dms_Sector_List | G10: dms_Segment_List | H10: dms_FormControl_List | I10: dms_RPT_List | J10: dms_RPTMonth_List | K10: dms_CRCPlength_List | L10: dms_FRCPlength_List | M10: dms_663_List | N10: dms_DeterminationRef_List | O10: dms_Addr1_List | P10: dms_Addr2_List | Q10: dms_Suburb_List | R10: dms_State_List | S10: dms_PostCode_List | T10: dms_PAddr1_List | U10: dms_PAddr2_List | V10: dms_PSuburb_List | W10: dms_PState_List | X10: dms_PPostCode_List | Y10: dms_ContactName1_List | Z10: dms_ContactPh1_List | AA10: dms_ContactEmail_List | AB10: dms_CBD_flag | AC10: dms_Urban_flag | AD10: dms_ShortRural_flag | AE10: dms_LongRural_flag | AF10: dms_FeederType_5_flag | AG10: dms_MAIFI_flag_List | AH10: dms_FeederName_1 | AI10: dms_FeederName_2 | AJ10: dms_FeederName_3 | AK10: dms_FeederName_4 | AL10: dms_FeederName_5 | AM10: dms_Public_Lighting_List | AN10: Column1
B11: ActewAGL Distribution | C11: ActewAGL Distribution | D11: 76670568688 | E11: ACT | F11: Electricity | G11: Distribution | H11: Revenue cap | I11: Financial | J11: June | K11: 5 | L11: 5 | M11: 5 | N11: 2014-19 Distribution Determination | O11: 40 Bunda Street | Q11: CANBERRA | R11: ACT | S11: 2600 | T11: GPO BOX 366 | V11: CANBERRA | W11: ACT | X11: 2601 | Y11: Robert Walker | Z11: 02 6248 3847 | AA11: robert.walker@actewagle.com.au | AB11: NO | AC11: YES | AD11: YES | AE11: NO | AF11: NO | AG11: NO | AH11: CBD | AI11: Urban | AJ11: Short rural | AK11: Long rural | AM11: YES | AN11: ActewAGL Distribution
B12: ActewAGL Distribution (Tx Assets) | C12: ActewAGL Distribution (Tx Assets) | D12: 76670568688 | E12: ACT | F12: Electricity | G12: Distribution | H12: Revenue cap | I12: Financial | J12: June | K12: 5 | L12: 5 | M12: 5 | N12: distribution determination | O12: 40 Bunda Street | Q12: CANBERRA | R12: ACT | S12: 2600 | T12: GPO BOX 366 | V12: CANBERRA | W12: ACT | X12: 2601 | Y12: Robert Walker | Z12: 02 6248 3847 | AA12: robert.walker@actewagle.com.au | AB12: NO | AC12: YES | AD12: YES | AE12: NO | AF12: NO | AG12: NO | AH12: CBD | AI12: Urban | AJ12: Short rural | AK12: Long rural | AM12: NO | AN12: ActewAGL Distribution (Tx Assets)
B13: ActewAGL Gas | C13: ActewAGL Gas | D13: 76670568688 | E13: ACT | F13: Gas | G13: Distribution | H13: Weighted average price cap | I13: Financial | J13: June | K13: 5 | L13: 5 | M13: x | O13: 40 Bunda Street | Q13: CANBERRA | R13: ACT | S13: 2600 | T13: GPO BOX 366 | V13: CANBERRA | W13: ACT | X13: 2601 | Y13: Philip Deamer | Z13: 02 6248 3438 | AA13: GasAAReview@actewagl.com.au | AB13: NO | AC13: NO | AD13: NO | AE13: NO | AF13: NO | AG13: - | AH13: CBD | AI13: Urban | AJ13: Short rural | AK13: Long rural | AM13: NO | AN13: ActewAGL Gas
B14: AEMO | C14: Australian Energy Market Operator Ltd | D14: 94072010327 | E14: Vic | F14: Electricity | G14: Transmission | H14: - | I14: Financial | J14: March | K14: 5 | L14: 5 | M14: x | N14: - | O14: Level 22 | P14: 530 Collins Street | Q14: MELBOURNE | R14: VIC | S14: 3000 | T14: GPO Box 2008 | V14: MELBOURNE | W14: VIC | X14: 3001 | AB14: NO | AC14: NO | AD14: NO | AE14: NO | AF14: NO | AG14: - | AH14: CBD | AI14: Urban | AJ14: Short rural | AK14: Long rural | AM14: NO | AN14: AEMO
B15: AGN (Albury and Victoria) | C15: Australian Gas Networks Limited (reporting data for Albury and Victoria) | D15: 19078551685 | E15: Vic | F15: Gas | G15: Distribution | H15: Weighted average price cap | I15: Calendar | J15: December | K15: 5 | L15: 5 | M15: x | O15: Level 6 | P15: 400 King William Street | Q15: ADELAIDE | R15: SA | S15: 5000 | T15: PO Box 6468 | U15: Halifax Street | V15: ADELAIDE | W15: SA | X15: 5000 | Y15: Craig de Laine | Z15: 08 8418 1129 | AA15: craig.delaine@agn.com.au | AB15: NO | AC15: NO | AD15: NO | AE15: NO | AF15: NO | AG15: - | AH15: CBD | AI15: Urban | AJ15: Short rural | AK15: Long rural | AM15: NO | AN15: AGN (Albury)
B16: AGN (Albury) | C16: Australian Gas Networks Limited (reporting data for Albury) | D16: 19078551685 | E16: Vic | F16: Gas | G16: Distribution | H16: Weighted average price cap | I16: Calendar | J16: December | K16: 5 | L16: 5 | M16: x | O16: Level 6 | P16: 400 King William Street | Q16: ADELAIDE | R16: SA | S16: 5000 | T16: PO Box 6468 | U16: Halifax Street | V16: ADELAIDE | W16: SA | X16: 5000 | Y16: Craig de Laine | Z16: 08 8418 1129 | AA16: craig.delaine@agn.com.au | AB16: NO | AC16: NO | AD16: NO | AE16: NO | AF16: NO | AG16: - | AH16: CBD | AI16: Urban | AJ16: Short rural | AK16: Long rural | AM16: NO
B17: AGN (SA) | C17: Australian Gas Networks Limited (reporting data for SA) | D17: 19078551685 | E17: SA | F17: Gas | G17: Distribution | H17: Weighted average price cap | I17: Financial | J17: June | K17: 5 | L17: 5 | M17: 5 | N17: distribution determination | O17: Level 6 | P17: 400 King William Street | Q17: ADELAIDE | R17: SA | S17: 5000 | T17: PO Box 6468 | U17: Halifax Street | V17: ADELAIDE | W17: SA | X17: 5000 | Y17: Craig de Laine | Z17: 08 8418 1129 | AA17: craig.delaine@agn.com.au | AB17: NO | AC17: NO | AD17: NO | AE17: NO | AF17: NO | AG17: - | AH17: CBD | AI17: Urban | AJ17: Short rural | AK17: Long rural | AM17: NO | AN17: AGN (SA)
B18: AGN (Victoria) | C18: Australian Gas Networks Limited (reporting data for Victoria) | D18: 19078551685 | E18: Vic | F18: Gas | G18: Distribution | H18: Weighted average price cap | I18: Calendar | J18: December | K18: 5 | L18: 5 | M18: x | O18: Level 6 | P18: 400 King William Street | Q18: ADELAIDE | R18: SA | S18: 5000 | T18: PO Box 6468 | U18: Halifax Street | V18: ADELAIDE | W18: SA | X18: 5000 | Y18: Craig de Laine | Z18: 08 8418 1129 | AA18: craig.delaine@agn.com.au | AB18: NO | AC18: NO | AD18: NO | AE18: NO | AF18: NO | AG18: - | AH18: CBD | AI18: Urban | AJ18: Short rural | AK18: Long rural | AM18: NO | AN18: AGN (Victoria)
B19: Amadeus | C19: APT Pipelines (NT) Pty Ltd | D19: 39009737393 | E19: NT | F19: Gas | G19: Transmission | H19: Weighted average price cap | I19: Financial | J19: June | K19: 5 | L19: 5 | M19: x | N19: n/a | O19: Level 19, HSBC Building | P19: 580 George Street | Q19: SYDNEY | R19: NSW | S19: 2000 | T19: Level 19, HSBC Building | U19: 580 George Street | V19: SYDNEY | W19: NSW | X19: 2000 | Y19: Alexandra Curran | Z19: 02 9275 0020 | AA19: alexandra.curran@apa.com.au | AB19: NO | AC19: NO | AD19: NO | AE19: NO | AF19: NO | AG19: - | AH19: CBD | AI19: Urban | AJ19: Short rural | AK19: Long rural | AM19: NO | AN19: Amadeus
B20: APA GasNet | C20: APA GasNet Australia (Operations) Pty Ltd | D20: 065083009 | E20: Vic | F20: Gas | G20: Transmission | H20: Weighted average price cap | I20: Calendar | J20: December | K20: 5 | L20: 5 | M20: x | O20: Level 19, HSBC Building | P20: 580 George Street | Q20: SYDNEY | R20: NSW | S20: 2000 | T20: PO Box R41 | V20: ROYAL EXCHANGE | W20: NSW | X20: 1225 | Y20: Alexandra Curran | Z20: 02 9275 0020 | AA20: alexandra.curran@apa.com.au | AB20: NO | AC20: NO | AD20: NO | AE20: NO | AF20: NO | AG20: - | AH20: CBD | AI20: Urban | AJ20: Short rural | AK20: Long rural | AM20: NO | AN20: APA GasNet
B21: Ausgrid | C21: Ausgrid | D21: 78508211731 | E21: NSW | F21: Electricity | G21: Distribution | H21: Revenue cap | I21: Financial | J21: June | K21: 5 | L21: 5 | M21: 5 | N21: 2014-19 Distribution Determination | O21: 570 George St | Q21: SYDNEY | R21: NSW | S21: 2000 | T21: GPO Box 4009 | V21: SYDNEY | W21: NSW | X21: 2001 | Y21: John Thomson | Z21: 02 9269 2312 | AA21: john.thomson@ausgrid.com.au | AB21: YES | AC21: YES | AD21: YES | AE21: YES | AF21: NO | AG21: NO | AH21: CBD | AI21: Urban | AJ21: Short rural | AK21: Long rural | AM21: YES | AN21: Ausgrid
B22: Ausgrid (Tx Assets) | C22: Ausgrid (Tx Assets) | D22: 67505337385 | E22: NSW | F22: Electricity | G22: Distribution | H22: Revenue cap | I22: Financial | J22: June | K22: 5 | L22: 5 | M22: 5 | N22: distribution determination | O22: 570 George St | Q22: SYDNEY | R22: NSW | S22: 2000 | T22: GPO Box 4009 | V22: SYDNEY | W22: NSW | X22: 2001 | Y22: John Thomson | Z22: 02 9269 2312 | AA22: john.thomson@ausgrid.com.au | AB22: YES | AC22: YES | AD22: YES | AE22: YES | AF22: NO | AG22: NO | AH22: CBD | AI22: Urban | AJ22: Short rural | AK22: Long rural | AM22: NO | AN22: Ausgrid (Tx Assets)
B23: AusNet (D) | C23: AusNet Electricity Services Pty Ltd | D23: 91064651118 | E23: Vic | F23: Electricity | G23: Distribution | H23: Revenue cap | I23: Calendar | J23: December | K23: 5 | L23: 5 | M23: 2 | N23: 2016-20 Distribution Determination | O23: Level 32 | P23: 2 Southbank Boulevard | Q23: SOUTHBANK | R23: Vic | S23: 3006 | T23: Locked Bag 14051 | V23: MELBOURNE CITY MAIL CENTRE | W23: VIC | X23: 8001 | Y23: please provide contact details | AB23: NO | AC23: YES | AD23: YES | AE23: YES | AF23: NO | AG23: YES | AH23: CBD | AI23: Urban | AJ23: Short rural | AK23: Long rural | AM23: YES | AN23: AusNet (D)
B24: AusNet (Gas) | C24: AusNet Gas Services | D24: 086015036 | E24: Vic | F24: Gas | G24: Distribution | H24: Weighted average price cap | I24: Calendar | J24: December | K24: 5 | L24: 5 | M24: X | O24: Level 19, HSBC Building | P24: 580 George Street | Q24: SYDNEY | R24: NSW | S24: 2000 | T24: PO Box R41 | V24: ROYAL EXCHANGE | W24: NSW | X24: 1225 | Y24: Alexandra Curran | Z24: 02 9275 0020 | AA24: alexandra.curran@apa.com.au | AB24: NO | AC24: NO | AD24: NO | AE24: NO | AF24: NO | AG24: - | AH24: CBD | AI24: Urban | AJ24: Short rural | AK24: Long rural | AM24: NO | AN24: AusNet (Gas)
B25: AusNet (T) | C25: Ausnet Services (Transmission) Ltd | D25: 48116124362 | E25: Vic | F25: Electricity | G25: Transmission | H25: Revenue cap | I25: Financial | J25: March | K25: 5 | L25: 5 | M25: 2 | N25: transmission determination | O25: Level 32 | P25: 2 Southbank Boulevard | Q25: SOUTHBANK | R25: Vic | S25: 3006 | T25: Locked Bag 14051 | V25: MELBOURNE CITY MAIL CENTRE | W25: Vic | X25: 8001 | Y25: Clare Thompson | Z25: 03 9695 6670 | AA25: clare.e.thompson@ausnetservices.com.au | AB25: NO | AC25: NO | AD25: NO | AE25: NO | AF25: NO | AG25: - | AH25: CBD | AI25: Urban | AJ25: Short rural | AK25: Long rural | AM25: NO | AN25: AusNet (T)
B26: Australian Distribution Co. | C26: Australian Distribution Co. | D26: 11222333444 | E26: - | F26: Electricity | G26: Distribution | H26: Revenue cap | I26: Financial | J26: June | K26: 5 | L26: 5 | M26: 2 | N26: distribution determination | O26: 123 Straight Street | Q26: SYDNEY | R26: NSW | S26: 2000 | T26: PO Box 123 | V26: SYDNEY | W26: NSW | X26: 2000 | Y26: Bob Smith | Z26: 02 1234 5678 | AA26: bob@auselec.net.au | AB26: YES | AC26: YES | AD26: YES | AE26: YES | AF26: NO | AG26: NO | AH26: CBD | AI26: Urban | AJ26: Short rural | AK26: Long rural | AM26: YES | AN26: Australian Distribution Co.
B27: Australian Distribution Co. (Gas) | C27: Australian Gas Distribution Co. | D27: 11222333444 | E27: NSW | F27: Gas | G27: Distribution | H27: Weighted average price cap | I27: Financial | J27: June | K27: 5 | L27: 5 | O27: 123 Straight Street | Q27: SYDNEY | R27: NSW | S27: 2000 | T27: PO Box 123 | V27: SYDNEY | W27: NSW | X27: 2000 | Y27: Bob Smith | Z27: 02 1234 5678 | AA27: bob@auselec.net.au | AB27: NO | AC27: NO | AD27: NO | AE27: NO | AF27: NO | AG27: - | AH27: CBD | AI27: Urban | AJ27: Short rural | AK27: Long rural | AM27: NO | AN27: Australian Distribution Co. (Vic)
B28: Australian Distribution Co. (Vic) | C28: Australian Distribution Co. (Victoria) | D28: 11222333444 | E28: Vic | F28: Electricity | G28: Distribution | H28: Revenue cap | I28: Calendar | J28: December | K28: 5 | L28: 5 | M28: 2 | N28: distribution determination | O28: 123 Straight Street | Q28: MELBOURNE | R28: Vic | S28: 3000 | T28: PO Box 123 | V28: MELBOURNE | W28: VIC | X28: 3000 | Y28: Bob Smith | Z28: 02 1234 5678 | AA28: bob@auselec.net.au | AB28: NO | AC28: NO | AD28: NO | AE28: NO | AF28: NO | AG28: YES | AH28: CBD | AI28: Urban | AJ28: Short rural | AK28: Long rural | AM28: YES | AN28: Australian Distribution Co. (Vic)
B29: Australian Transmission Co. | C29: Australian Transmission Co. | D29: 11222333444 | E29: - | F29: Electricity | G29: Transmission | H29: Revenue cap | I29: Financial | J29: June | K29: 5 | L29: 5 | M29: 5 | N29: transmission determination | O29: 123 Straight Street | Q29: SYDNEY | R29: NSW | S29: 2000 | T29: PO Box 123 | V29: SYDNEY | W29: NSW | X29: 2000 | Y29: Bob Smith | Z29: 02 1234 5678 | AA29: bob@auselec.net.au | AB29: NO | AC29: NO | AD29: NO | AE29: NO | AF29: NO | AG29: - | AH29: CBD | AI29: Urban | AJ29: Short rural | AK29: Long rural | AM29: NO | AN29: Australian Transmission Co.
B30: Central Ranges Pipeline (D) | C30: Central Ranges Pipeline Pty Ltd | D30: 108218355 | E30: NSW | F30: Gas | G30: Distribution | H30: Weighted average price cap | I30: Financial | J30: June | K30: 15 | L30: 5 | M30: 5 | N30: distribution determination | O30: Level 19 | P30: 580 George Street | Q30: SYDNEY | R30: NSW | S30: 2000 | T30: PO Box R41 | V30: ROYAL EXCHANGE | W30: NSW | X30: 1225 | Y30: Scott Young | Z30: 02 9275 0031 | AA30: scott.young@apa.com.au | AB30: NO | AC30: NO | AD30: NO | AE30: NO | AF30: NO | AG30: - | AH30: CBD | AI30: Urban | AJ30: Short rural | AK30: Long rural | AM30: NO
B31: Central Ranges Pipeline (T) | C31: Central Ranges Pipeline Pty Ltd | D31: 108218355 | E31: NSW | F31: Gas | G31: Distribution | H31: Weighted average price cap | I31: Financial | J31: June | K31: 14 | L31: 5 | M31: 5 | N31: transmission determination | O31: Level 19 | P31: 580 George Street | Q31: SYDNEY | R31: NSW | S31: 2000 | T31: PO Box R41 | V31: ROYAL EXCHANGE | W31: NSW | X31: 1225 | Y31: Scott Young | Z31: 02 9275 0031 | AA31: scott.young@apa.com.au | AB31: NO | AC31: NO | AD31: NO | AE31: NO | AF31: NO | AG31: - | AH31: CBD | AI31: Urban | AJ31: Short rural | AK31: Long rural | AM31: NO
B32: CitiPower | C32: CitiPower | D32: 76064651056 | E32: Vic | F32: Electricity | G32: Distribution | H32: Revenue cap | I32: Calendar | J32: December | K32: 5 | L32: 5 | M32: 2 | N32: 2016-20 Distribution Determination | O32: 40 Market Street | Q32: MELBOURNE | R32: Vic | S32: 3000 | T32: Locked Bag 14090 | V32: MELBOURNE | W32: VIC | X32: 8001 | Y32: Hannah Williams | Z32: 03 9683 4088 | AA32: hwilliams@powercor.com.au | AB32: YES | AC32: YES | AD32: NO | AE32: NO | AF32: NO | AG32: YES | AH32: CBD | AI32: Urban | AJ32: Short rural | AK32: Long rural | AM32: YES | AN32: CitiPower
B33: Directlink | C33: Directlink | D33: 16779340889 | E33: Qld | F33: Electricity | G33: Transmission | H33: Revenue cap | I33: Financial | J33: June | K33: 5 | L33: 5 | M33: 5 | N33: transmission determination | O33: Level 19, HSBC Building | P33: 580 George Street | Q33: SYDNEY | R33: NSW | S33: 2000 | T33: PO Box R41 | V33: ROYAL EXCHANGE | W33: NSW | X33: 1225 | Y33: Scott Young | Z33: 02 9275 0031 | AA33: scott.young@apa.com.au | AB33: NO | AC33: NO | AD33: NO | AE33: NO | AF33: NO | AG33: - | AH33: CBD | AI33: Urban | AJ33: Short rural | AK33: Long rural | AM33: NO | AN33: Directlink
B34: ElectraNet | C34: ElectraNet | D34: 41094482416 | E34: SA | F34: Electricity | G34: Transmission | H34: Revenue cap | I34: Financial | J34: June | K34: 5 | L34: 5 | M34: 5 | N34: transmission determination | O34: 52-55 East Terrace | P34: Rymill Park | Q34: ADELAIDE | R34: SA | S34: 5000 | T34: PO Box 7096 | U34: Hutt Street Post Office | V34: ADELAIDE | W34: SA | X34: 5000 | Y34: Bill Jackson | Z34: 08 8404 7969 | AA34: jackson.bill@electranet.com.au | AB34: NO | AC34: NO | AD34: NO | AE34: NO | AF34: NO | AG34: - | AH34: CBD | AI34: Urban | AJ34: Short rural | AK34: Long rural | AM34: NO | AN34: ElectraNet
B35: Endeavour Energy | C35: Endeavour Energy | D35: 11247365823 | E35: NSW | F35: Electricity | G35: Distribution | H35: Revenue cap | I35: Financial | J35: June | K35: 5 | L35: 5 | M35: 5 | N35: 2014-19 Distribution Determination | O35: 51 Huntingwood Drive | Q35: HUNTINGWOOD | R35: NSW | S35: 2148 | T35: PO Box 811 | V35: SEVEN HILLS | W35: NSW | X35: 1730 | Y35: Jon Hocking | Z35: 02 9853 4386 / 0407 348 156 | AA35: Jon.Hocking@Endeavourenergy.com.au | AB35: NO | AC35: YES | AD35: YES | AE35: YES | AF35: NO | AG35: NO | AH35: CBD | AI35: Urban | AJ35: Short rural | AK35: Long rural | AM35: YES | AN35: Endeavour Energy
B36: Energex | C36: Energex | D36: 40078849055 | E36: Qld | F36: Electricity | G36: Distribution | H36: Revenue cap | I36: Financial | J36: June | K36: 5 | L36: 5 | M36: 5 | N36: 2015-20 Distribution Determination | O36: 26 Reddacliff Street | Q36: NEWSTEAD | R36: Qld | S36: 4006 | T36: 26 Reddacliff Street | V36: NEWSTEAD | W36: QLD | X36: 4006 | Y36: Jenny Doyle, Group Manager Regulatory Affairs | Z36: (07) 3851 6416 | AA36: jenny.doyle@ergon.com.au | AB36: YES | AC36: YES | AD36: YES | AE36: NO | AF36: NO | AG36: NO | AH36: CBD | AI36: Urban | AJ36: Short rural | AK36: Long rural | AM36: YES | AN36: Energex
B37: Ergon Energy | C37: Ergon Energy | D37: 50087646062 | E37: Qld | F37: Electricity | G37: Distribution | H37: Revenue cap | I37: Financial | J37: June | K37: 5 | L37: 5 | M37: 5 | N37: 2015-20 Distribution Determination | O37: 22 Walker Street | Q37: TOWNSVILLE | R37: Qld | S37: 4810 | T37: Po Box 264 | V37: FORTITUDE VALLEY | W37: QLD | X37: 4006 | Y37: Jenny Doyle, Group Manager Regulatory Affairs | Z37: (07) 3851 6416 | AA37: jenny.doyle@ergon.com.au | AB37: NO | AC37: YES | AD37: YES | AE37: YES | AF37: NO | AG37: NO | AH37: CBD | AI37: Urban | AJ37: Short rural | AK37: Long rural | AM37: YES | AN37: Ergon Energy
B38: Essential Energy | C38: Essential Energy | D38: 37428185226 | E38: NSW | F38: Electricity | G38: Distribution | H38: Revenue cap | I38: Financial | J38: June | K38: 5 | L38: 5 | M38: 5 | N38: 2014-19 Distribution Determination | O38: 8 Buller Street | Q38: PORT MACQUARIE | R38: NSW | S38: 2444 | T38: PO Box 5730 | V38: PORT MACQUARIE | W38: NSW | X38: 2444 | Y38: Catherine Waddell | Z38: 02 6338 3553 | AA38: catherine.waddell@essentialenergy.com.au | AB38: NO | AC38: NO | AD38: YES | AE38: YES | AF38: NO | AG38: NO | AH38: CBD | AI38: Urban | AJ38: Short rural | AK38: Long rural | AM38: YES | AN38: Essential Energy
B39: Jemena Electricity | C39: Jemena Electricity | D39: 82064651083 | E39: Vic | F39: Electricity | G39: Distribution | H39: Revenue cap | I39: Calendar | J39: December | K39: 5 | L39: 5 | M39: 2 | N39: 2016-20 Distribution Determination | O39: Level 16 | P39: 567 Collins Street | Q39: MELBOURNE | R39: VIC | S39: 3000 | T39: PO Box 16182 | V39: MELBOURNE | W39: VIC | X39: 8001 | Y39: Matthew Serpell | Z39: 03 9173 8231 | AA39: matthew.serpell@jemena.com.au | AB39: NO | AC39: YES | AD39: YES | AE39: NO | AF39: NO | AG39: YES | AH39: CBD | AI39: Urban | AJ39: Short rural | AK39: Long rural | AM39: YES | AN39: Jemena Electricity
B40: JGN | C40: Jemena Gas Networks (NSW) Ltd | D40: 003 004 322 | E40: NSW | F40: Gas | G40: Distribution | H40: Weighted average price cap | I40: Financial | J40: June | K40: 5 | L40: 5 | Y40: please provide contact details | AB40: NO | AC40: NO | AD40: NO | AE40: NO | AF40: NO | AG40: - | AH40: CBD | AI40: Urban | AJ40: Short rural | AK40: Long rural | AM40: NO | AN40: JGN
B41: Multinet Gas | C41: Multinet Gas (DB No.1) Pty Ltd (ACN 086 026 986), Multinet Gas (DB No.2) Pty Ltd (ACN 086 230 122) | D41: 086026986 | E41: Vic | F41: Gas | G41: Distribution | H41: Weighted average price cap | I41: Calendar | J41: December | K41: 5 | L41: 5 | M41: x | O41: 43-45 Centreway | Q41: MT WAVERLEY | R41: Vic | S41: 3149 | Y41: Andrew Schille | Z41: 03 8846 9860 | AA41: andrew.schille@ue.com.au | AB41: NO | AC41: NO | AD41: NO | AE41: NO | AF41: NO | AG41: - | AH41: CBD | AI41: Urban | AJ41: Short rural | AK41: Long rural | AM41: NO | AN41: Multinet Gas
B42: Murraylink | C42: Murraylink | D42: 79181207909 | E42: SA | F42: Electricity | G42: Transmission | H42: Revenue cap | I42: Financial | J42: June | K42: 5 | L42: 5 | M42: 5 | N42: transmission determination | O42: Level 19 | P42: 580 George Street | Q42: SYDNEY | R42: NSW | S42: 2000 | T42: PO Box R41 | V42: ROYAL EXCHANGE | W42: NSW | X42: 1225 | Y42: Scott Young | Z42: 02 9275 0031 | AA42: scott.young@apa.com.au | AB42: NO | AC42: NO | AD42: NO | AE42: NO | AF42: NO | AG42: - | AH42: CBD | AI42: Urban | AJ42: Short rural | AK42: Long rural | AM42: NO | AN42: Murraylink
B43: Power and Water | C43: Power and Water Corporation | D43: 15947352360 | E43: NT | F43: Electricity | G43: Distribution | H43: Revenue cap | I43: Financial | J43: June | K43: 5 | L43: 5 | M43: x | N43: distribution determination | O43: GPO Box 1921 | Q43: DARWIN | R43: NT | S43: 801 | T43: GPO Box 1921 | V43: DARWIN | W43: NT | X43: 801 | Y43: Lucy Moon | Z43: 08 8924 5822 | AA43: Lucy.Moon@powerwater.com.au | AB43: YES | AC43: YES | AD43: YES | AE43: YES | AF43: NO | AG43: NO | AH43: CBD | AI43: Urban | AJ43: Short rural | AK43: Long rural | AM43: NO | AN43: Power and Water
B44: Powercor Australia | C44: Powercor Australia | D44: 89064651109 | E44: Vic | F44: Electricity | G44: Distribution | H44: Revenue cap | I44: Calendar | J44: December | K44: 5 | L44: 5 | M44: 2 | N44: 2016-20 Distribution Determination | O44: 40 Market Street | Q44: MELBOURNE | R44: Vic | S44: 3000 | T44: Locked bag 14090 | V44: MELBOURNE | W44: VIC | X44: 8001 | Y44: Hannah Williams | Z44: 03 9683 4088 | AA44: hwilliams@powercor.com.au | AB44: NO | AC44: NO | AD44: YES | AE44: YES | AF44: NO | AG44: YES | AH44: CBD | AI44: Urban | AJ44: Short rural | AK44: Long rural | AM44: YES | AN44: Powercor Australia
B45: Powerlink | C45: Queensland Electricity Transmission Corporation Limited trading as Powerlink Queensland | D45: 82078849233 | E45: Qld | F45: Electricity | G45: Transmission | H45: Revenue cap | I45: Financial | J45: June | K45: 5 | L45: 5 | M45: 5 | N45: transmission determination | O45: 33 Harold St | Q45: VIRGINIA | R45: Qld | S45: 4014 | T45: PO Box 1193 | V45: VIRGINIA | W45: QLD | X45: 4014 | Y45: Jennifer Harris | Z45: 07 3860 2667 | AA45: jharris@powerlink.com.au | AB45: NO | AC45: NO | AD45: NO | AE45: NO | AF45: NO | AG45: - | AH45: CBD | AI45: Urban | AJ45: Short rural | AK45: Long rural | AM45: NO | AN45: Powerlink
B46: Roma to Brisbane Pipeline | C46: APT Petroleum Pipelines Limited t/a Roma to Brisbane Pipeline | D46: 009 737 393 | E46: Qld | F46: Gas | G46: Transmission | H46: Weighted average price cap | I46: Financial | J46: June | K46: 5 | L46: 5 | M46: x | N46: n/a | O46: 580 George Street | Q46: SYDNEY | R46: NSW | S46: 2000 | T46: PO Box R41 | V46: ROYAL EXCHANGE | W46: NSW | X46: 1225 | Y46: Mark Allen | Z46: 02 9275 0010 | AA46: mark.allen@apa.com.au | AB46: NO | AC46: NO | AD46: NO | AE46: NO | AF46: NO | AG46: - | AH46: CBD | AI46: Urban | AJ46: Short rural | AK46: Long rural | AM46: NO | AN46: Roma to Brisbane Pipeline
B47: SA Power Networks | C47: SA Power Networks | D47: 13332330749 | E47: SA | F47: Electricity | G47: Distribution | H47: Revenue cap | I47: Financial | J47: June | K47: 5 | L47: 5 | M47: 5 | N47: 2015-20 Distribution Determination | O47: 1 Anzac Highway | Q47: KESWICK | R47: SA | S47: 5035 | T47: GPO Box 77 | V47: ADELAIDE | W47: SA | X47: 5000 | Y47: Richard Sibly | Z47: 08 8404 5613 | AA47: richard.sibly@sapowernetworks.com.au | AB47: NO | AC47: NO | AD47: YES | AE47: YES | AF47: NO | AG47: NO | AH47: CBD | AI47: Urban | AJ47: Short rural | AK47: Long rural | AM47: NO | AN47: SA Power Networks
B48: TasNetworks (D) | C48: TasNetworks (D) | D48: 24167357299 | E48: Tas | F48: Electricity | G48: Distribution | H48: Revenue cap | I48: Financial | J48: June | K48: 5 | L48: 5 | M48: 5 | N48: distribution determination | O48: 1-7 Maria Street | Q48: LENAH VALLEY | R48: Tas | S48: 7008 | T48: PO Box 606 | V48: MOONAH | W48: Tas | X48: 7009 | Y48: John Sayers | Z48: 03 6271 6469 | AA48: john.sayers@tasnetworks.com.au | AB48: YES | AC48: YES | AD48: YES | AE48: YES | AF48: YES | AG48: NO | AH48: Critical Infrastructure | AI48: High density commercial | AJ48: Urban | AK48: High density rural | AL48: Low density rural | AM48: YES | AN48: TasNetworks (D)
B49: TasNetworks (T) | C49: TasNetworks (T) | D49: 24167357299 | E49: Tas | F49: Electricity | G49: Transmission | H49: Revenue cap | I49: Financial | J49: June | K49: 5 | L49: 5 | M49: 5 | N49: transmission determination | O49: 1-7 Maria Street | Q49: LENAH VALLEY | R49: Tas | S49: 7008 | T49: PO Box 606 | V49: MOONAH | W49: Tas | X49: 7009 | Y49: John Sayers | Z49: 03 6271 6469 | AA49: john.sayers@tasnetworks.com.au | AB49: NO | AC49: NO | AD49: NO | AE49: NO | AF49: NO | AG49: - | AH49: CBD | AI49: Urban | AJ49: Short rural | AK49: Long rural | AM49: NO | AN49: TasNetworks (T)
B50: TransGrid | C50: NSW Electricity Networks Operations Pty Ltd trading as TransGrid | D50: 70 250 995 390 | E50: NSW | F50: Electricity | G50: Transmission | H50: Revenue cap | I50: Financial | J50: June | K50: 4 | L50: 5 | M50: 5 | N50: transmission determination | O50: 180 Thomas Street | Q50: SYDNEY | R50: NSW | S50: 2000 | T50: PO Box A1000 | V50: SYDNEY SOUTH | W50: NSW | X50: 1235 | Y50: Garrie Chubb | Z50: 0408 210 221 | AA50: garrie.chubb@transgrid.com.au | AB50: NO | AC50: NO | AD50: NO | AE50: NO | AF50: NO | AG50: - | AH50: CBD | AI50: Urban | AJ50: Short rural | AK50: Long rural | AM50: NO | AN50: TransGrid
B51: United Energy | C51: United Energy | D51: 70064651029 | E51: Vic | F51: Electricity | G51: Distribution | H51: Revenue cap | I51: Calendar | J51: December | K51: 5 | L51: 5 | M51: 2 | N51: 2016-20 Distribution Determination | O51: Level 3 | P51: 6 Nexus Court | Q51: MULGRAVE | R51: Vic | S51: 3149 | T51: PO Box 449 | V51: MOUNT WAVERLEY | W51: VIC | X51: 3170 | Y51: Mathew Abraham | Z51: 03 8846 9758 | AA51: mathew.abraham@ue.com.au | AB51: NO | AC51: NO | AD51: YES | AE51: NO | AF51: NO | AG51: YES | AH51: CBD | AI51: Urban | AJ51: Short rural | AK51: Long rural | AM51: YES | AN51: United Energy
Z54: For EB & Reset RINs only | AE54: For AARs only
B55: The Reg Year Ending (dms_RYE) must be set to the last year of the regulatory period. For forecast data is is usually (FRCP_y5) for actual it is a single year (CRY). For historical actual data the RYE will need to be set manually in the business details sheet by setting the dms_Multiyear_flag to 1 and putting the correct value in 'dms_Specified_FinalYear. See cells C67:C68 | N55: Drop down selector box for CA & Reset RINs. | O55: For CA & Reset RINs only | Z55: for DNSP only | AE55: For DNSPs only
B56: dms_Model_List | C56: dms_Worksheet_List | E56: dms_RYE_Formula_Result | N56: dms_0203_ProjectType | O56: dms_020303_01_UOM | P56: dms_020501_01_UOM | Q56: dms_020501_02_UOM | R56: dms_020501_03_UOM | S56: dms_020501_04_UOM | T56: dms_020603_01_UOM | U56: dms_020701_01_UOM | V56: dms_020701_02_UOM | W56: dms_020701_01_Rows | X56: dms_040102_01_UOM | Y56: dms_040102_04_UOM | Z56: dms_030601_01_UOM | AA56: dms_030601_02_UOM | AB56: dms_030701_01_UOM | AC56: dms_030702_01_UOM | AD56: dms_030703_01_UOM | AE56: dms_030605_UOM | AF56: dms_03060703_UOM
B57: ARR | C57: ANNUAL REPORTING STATEMENT | E57: =LEFT(dms_SingleYear_FinalYear_Result,2)&RIGHT(dms_SingleYear_FinalYear_Result,2) -> 2009 | F57: =LEFT(dms_SingleYear_FinalYear_Result,2)&RIGHT(dms_SingleYear_FinalYear_Result,2) | H57: Formula errors are OK | N57: New line on new route - single circuit | O57: Circuit line length in km | P57: 0's | Q57: 0's | R57: 0's | S57: 0's | T57: 0's | U57: km | V57: km | W57: Route line length within zone | X57: 0's | Y57: days | Z57: minutes/customer | AA57: minutes/customer | AB57: Customer / km | AC57: % | AD57: km | AE57: number | AF57: number
B58: CA | C58: CATEGORY ANALYSIS | E58: =LEFT(dms_SingleYear_FinalYear_Result,2)&RIGHT(dms_SingleYear_FinalYear_Result,2) -> 2009 | F58: =LEFT(dms_SingleYear_FinalYear_Result,2)&RIGHT(dms_SingleYear_FinalYear_Result,2) | H58: Formula errors are OK | N58: New line on new route - dual circuit | O58: Circuit line length in km | P58: 0's | Q58: 0's | R58: 0's | S58: 0's | T58: 0's | U58: 0's | V58: 0's | W58: Number of maintenance spans | X58: 0's | Y58: 0's | Z58: minutes/customer | AA58: minutes/customer | AB58: MWh/customer | AC58: Number of spans | AE58: number | AF58: number
B59: CESS | C59: CAPITLAL EXPENDITURE SHARING SCHEMING | E59: 2016 | F59: =LEFT(dms_SingleYear_FinalYear_Result,2)&RIGHT(dms_SingleYear_FinalYear_Result,2) | N59: New line on new route - other | O59: Circuit line length in km | P59: MVA added | Q59: MVA added | R59: MVA added | S59: MVA added | T59: 0's | U59: km | V59: km | W59: Total length of maintenance spans | X59: 0's | Y59: $0s | Z59: interruptions/customer | AA59: interruptions/customer | AB59: kVA / customer | AC59: Number of spans | AE59: number | AF59: number
B60: CPI | C60: CPI | N60: Line rebuild over existing route - single circuit | O60: Circuit line length in km | P60: 0's | Q60: 0's | R60: 0's | S60: 0's | T60: 0's | U60: km | V60: km | W60: Length of vegetation corridors | X60: $0s | Y60: 0's | Z60: interruptions/customer | AA60: interruptions/customer | AC60: Number of spans | AE60: number | AF60: number
B61: EB | C61: ECONOMIC BENCHMARKING | E61: =LEFT(dms_SingleYear_FinalYear_Result,2)&RIGHT(dms_SingleYear_FinalYear_Result,2) -> 2009 | F61: =LEFT(dms_SingleYear_FinalYear_Result,2)&RIGHT(dms_SingleYear_FinalYear_Result,2) | H61: Formula errors are OK | N61: Line rebuild over existing route - dual circuit | O61: Number | P61: total spend $0s | Q61: total spend $0s | R61: total spend $0s | S61: total spend $0s | T61: (per cent) | U61: 0's | V61: 0's | W61: Average number of trees per maintenance span | AC61: Number of spans | AE61: number | AF61: (per cent)
B62: PTRM | C62: POST TAX REVENUE MODEL | E62: =LEFT(dms_MultiYear_FinalYear_Result,2)&RIGHT(dms_MultiYear_FinalYear_Result,2) -> 2018 | F62: =LEFT(dms_MultiYear_FinalYear_Result,2)&RIGHT(dms_MultiYear_FinalYear_Result,2) | N62: Reconductor - Single circuit | O62: Number | P62: net circuit km added | Q62: net circuit km added | R62: net circuit km added | S62: net circuit km added | U62: years | V62: years | W62: Average frequency of cutting cycle | AC62: Years | AE62: number
B63: Reset | C63: REGULATORY REPORTING STATEMENT | E63: =LEFT(dms_MultiYear_FinalYear_Result,2)&RIGHT(dms_MultiYear_FinalYear_Result,2) -> 2018 | F63: =LEFT(dms_MultiYear_FinalYear_Result,2)&RIGHT(dms_MultiYear_FinalYear_Result,2) | H63: Formula errors are OK | N63: Reconductor - Dual circuit | O63: Number | P63: total spend $0s | Q63: total spend $0s | R63: total spend $0s | S63: total spend $0s | AC63: Years | AE63: number
B64: RFM | C64: ROLL FORWARD MODEL | E64: =LEFT(dms_CRCP_FinalYear_Result,2)&RIGHT(dms_CRCP_FinalYear_Result,2) -> 2018 | F64: =LEFT(dms_CRCP_FinalYear_Result,2)&RIGHT(dms_CRCP_FinalYear_Result,2) | N64: Other | P64: net circuit km added | Q64: net circuit km added | R64: net circuit km added | S64: net circuit km added | AC64: Trees | AE64: number
B65: WACC | C65: WEIGHTED AVERAGE COST OF CAPITAL | E65: =LEFT(dms_MultiYear_FinalYear_Result,2)&RIGHT(dms_MultiYear_FinalYear_Result,2) -> 2018 | F65: =LEFT(dms_MultiYear_FinalYear_Result,2)&RIGHT(dms_MultiYear_FinalYear_Result,2) | P65: total spend $0s | Q65: total spend $0s | R65: total spend $0s | S65: total spend $0s | AC65: Trees | AE65: number
P66: 0's | R66: $0s | AC66: Defects | AE66: number
B67: dms_DataQuality_List | P67: 0's | AC67: Defects | AE67: number
B68: Actual | P68: 0's | AC68: Spans | AE68: number
B69: Estimate | P69: $0s | AC69: km | AE69: (per cent)
B70: Consolidated | AC70: Spans | AE70: (per cent)
B71: Recast
B72: Public
O73: For PTRM files - this field set the text for the named range "DMS_Xfactor" which in all cases is simply the text "x factors" - this saves putting in each old gas PTRM file | Z73: for TNSP only
B74: For all files either AER or business needs to be able to specify the type of submission | C74: For PTRM & RFM templates we must provide a choice in case they change their form of control - otherwise it is drawn from the business specific lookup table above. | O74: DMS_Xfactor | Z74: dms_030601_01_UOM | AB74: dms_030701_01_UOM | AC74: dms_030702_01_UOM
B75: dms_SourceList | C75: dms_FormControl_Choices | O75: x factors | Z75: % | AB75: Number of spans | AC75: km
B76: After appeal | C76: Revenue cap | Z76: number | AB76: Years | AC76: %
B77: Draft decision | C77: Revenue yield | Z77: number | AB77: Trees | AC77: km
B78: Final decision | C78: Weighted average price cap | Z78: % | AB78: Defects | AC78: number
B79: PTRM update 1 | Z79: number | AB79: Number of spans
B80: PTRM update 2 | Z80: number | AB80: km
B81: PTRM update 3 | Z81: % | AB81: km
B82: PTRM update 4 | Z82: number | AB82: Number of spans
B83: PTRM update 5 | Z83: number
B84: PTRM update 6 | Z84: %
B85: PTRM update 7 | Z85: number
B86: Regulatory proposal | Z86: %
B87: Reporting | Z87: number
B88: Revised regulatory proposal | Z88: %
Z89: number
B93: Reason for interruption | C93: dms_Reason_Interruption_Detailed | D93: dms_Reason_Interruption | E93: dms_STPIS_Exclusion_List | F93: dms_020301_ProjectType_List | G93: dms_020302_ProjectType_List
B94: Animal | C94: Animal impact | D94: Animal | E94: Weather | F94: New substation establishment | G94: New line on new route - single circuit
C95: Animal nesting/burrowing, etc and other | D95: Asset failure | E95: Equipment failure | F95: Capacity upgrade | G95: New line on new route - dual circuit
C96: Other | D96: Other | E96: Operational error | F96: Voltage upgrade | G96: New line on new route - other
B97: Asset failure | C97: LV | D97: Overloads | E97: Vegetation | F97: Other | G97: Line rebuild over existing route - single circuit
C98: Distribution substation | D98: Planned | E98: Animals | G98: Line rebuild over existing route - dual circuit
C99: HV | D99: Network business | E99: Third party impacts | G99: Reconductor - Single circuit
C100: Zone substation | D100: Third party | E100: Transmission failure | G100: Reconductor - Dual circuit
C101: Subtransmission | D101: Unknown | E101: Load shedding | G101: Reconductor - Other
B102: Other | C102: insert description of 'other' | D102: Vegetation | E102: Inter-distributor connection failure | G102: Line upgrade - raising/retensoring
B103: Overloads | C103: - | D103: Weather | E103: Other | G103: Line upgrade - voltage upgrade
B104: Planned | C104: - | D104: 2 - STPIS Exclusion (3.3)(a) | G104: Line upgrade - capacity
B105: Network business | C105: Network error | D105: 3 - STPIS Exclusion (3.3)(a) | G105: String spare circuit
C106: Switching and protection error | D106: 4 - STPIS Exclusion (3.3)(a) | G106: Other
B107: Third party | C107: Fire | D107: 5 - STPIS Exclusion (3.3)(a)
C108: Other | D108: 6 - STPIS Exclusion (3.3)(a)
C109: Dig-in | D109: 7 - STPIS Exclusion (3.3)(a)
C110: Unauthorised access
C111: Vehicle impact
B112: Unknown | C112: Unknown
B113: Vegetation | C113: Blow-in/Fall-in - NSP responsibility
C114: Grow-in - NSP responsibility
C115: Blow-in/Fall-in - Other responsible party
C116: Grow-in - Other responsible party
B117: Weather
B118: 2 - STPIS Exclusion (3.3)(a)
B119: 3 - STPIS Exclusion (3.3)(a)
B120: 4 - STPIS Exclusion (3.3)(a)
B121: 5 - STPIS Exclusion (3.3)(a)
B122: 6 - STPIS Exclusion (3.3)(a)
B123: 7 - STPIS Exclusion (3.3)(a)
B131: These are indeces and lookup values for various dates. All step from the value placed in FRCP_y1 on the business and other details worksheet | O131: These date tables are currently used in the Recast templates to provide column headings and conditional formatting
B132: dms_FRCPlength_Num_List | C132: dms_FinalYear_List | D132: dms_CRCPlength_Num_List | E132: dms_CFinalYear_List | F132: dms_FRCP_years | H132: dms_CRCP_years | J132: dms_CRCP_index | L132: dms_Financial_Years | M132: dms_Calendar_Years | O132: CRY from input cell on business sheet | P132: CRY - financial | Q132: dms_FinYears | R132: CRY calendar | S132: dms_CalYears
B133: 1 | C133: dms_FRCP_y1 | D133: 1 | E133: CRCP_y1 | F133: =FRCP_y1 -> 2008-09 | G133: dms_FRCP_y1 | H133: =IF(dms_RPT="financial",VALUE(LEFT(dms_FRCP_y1,4)-1)&"-"&TEXT(VALUE(MID(dms_FRCP_y1,3,2)),"00"),VALUE(LEFT(dms_FRCP_y1,4)-1)) -> 2007-08 | I133: dms_CRCP_yZ | J133: 1 | L133: 2005-06 | M133: 2006 | O133: =CRY -> 2008-09 | P133: =VALUE(LEFT(CRY,4))&"-"&TEXT(MID(CRY,3,2)+1,"00") -> 2008-09 | Q133: dms_CRYf_y1 | R133: =VALUE(LEFT(CRY,4)+1) -> 2009 | S133: dms_CRYc_y1
B134: 2 | C134: dms_FRCP_y2 | D134: 2 | E134: CRCP_y2 | F134: =IF(dms_RPT="financial",VALUE(LEFT(dms_FRCP_y1,4)+1)&"-"&TEXT(VALUE(RIGHT(dms_FRCP_y1,2)+1),"00"),VALUE(LEFT(dms_FRCP_y1,4)+1)) -> 2009-10 | G134: dms_FRCP_y2 | H134: =IF(dms_RPT="financial",VALUE(LEFT(dms_CRCP_yZ,4)-1)&"-"&TEXT(VALUE(MID(dms_CRCP_yZ,3,2)),"00"),VALUE(LEFT(dms_CRCP_yZ,4)-1)) -> 2006-07 | I134: dms_CRCP_yY | J134: 2 | L134: 2006-07 | M134: 2007 | P134: =VALUE(LEFT(dms_CRYf_y1,4)+1)&"-"&TEXT(MID(dms_CRYf_y1,3,2)+2,"00") -> 2009-10 | Q134: dms_CRYf_y2 | R134: =VALUE(LEFT(dms_CRYc_y1,4)+1) -> 2010 | S134: dms_CRYc_y2
B135: 3 | C135: dms_FRCP_y3 | D135: 3 | E135: CRCP_y3 | F135: =IF(dms_RPT="financial",VALUE(LEFT(dms_FRCP_y2,4)+1)&"-"&TEXT(VALUE(RIGHT(dms_FRCP_y2,2)+1),"00"),VALUE(LEFT(dms_FRCP_y2,4)+1)) -> 2010-11 | G135: dms_FRCP_y3 | H135: =IF(dms_RPT="financial",VALUE(LEFT(dms_CRCP_yY,4)-1)&"-"&TEXT(VALUE(MID(dms_CRCP_yY,3,2)),"00"),VALUE(LEFT(dms_CRCP_yY,4)-1)) -> 2005-06 | I135: dms_CRCP_yX | J135: 3 | L135: 2007-08 | M135: 2008 | P135: =VALUE(LEFT(dms_CRYf_y2,4)+1)&"-"&TEXT(MID(dms_CRYf_y2,3,2)+2,"00") -> 2010-11 | Q135: dms_CRYf_y3 | R135: =VALUE(LEFT(dms_CRYc_y2,4)+1) -> 2011 | S135: dms_CRYc_y3
B136: 4 | C136: dms_FRCP_y4 | D136: 4 | E136: CRCP_y4 | F136: =IF(dms_RPT="financial",VALUE(LEFT(dms_FRCP_y3,4)+1)&"-"&TEXT(VALUE(RIGHT(dms_FRCP_y3,2)+1),"00"),VALUE(LEFT(dms_FRCP_y3,4)+1)) -> 2011-12 | G136: dms_FRCP_y4 | H136: =IF(dms_RPT="financial",VALUE(LEFT(dms_CRCP_yX,4)-1)&"-"&TEXT(VALUE(MID(dms_CRCP_yX,3,2)),"00"),VALUE(LEFT(dms_CRCP_yX,4)-1)) -> 2004-05 | I136: dms_CRCP_yW | J136: 4 | L136: 2008-09 | M136: 2009 | P136: =VALUE(LEFT(dms_CRYf_y3,4)+1)&"-"&TEXT(MID(dms_CRYf_y3,3,2)+2,"00") -> 2011-12 | Q136: dms_CRYf_y4 | R136: =VALUE(LEFT(dms_CRYc_y3,4)+1) -> 2012 | S136: dms_CRYc_y4
B137: 5 | C137: dms_FRCP_y5 | D137: 5 | E137: CRCP_y5 | F137: =IF(dms_RPT="financial",VALUE(LEFT(dms_FRCP_y4,4)+1)&"-"&TEXT(VALUE(RIGHT(dms_FRCP_y4,2)+1),"00"),VALUE(LEFT(dms_FRCP_y4,4)+1)) -> 2012-13 | G137: dms_FRCP_y5 | H137: =IF(dms_RPT="financial",VALUE(LEFT(dms_CRCP_yW,4)-1)&"-"&TEXT(VALUE(MID(dms_CRCP_yW,3,2)),"00"),VALUE(LEFT(dms_CRCP_yW,4)-1)) -> 2003-04 | I137: dms_CRCP_yV | J137: 5 | L137: 2009-10 | M137: 2010 | P137: =VALUE(LEFT(dms_CRYf_y4,4)+1)&"-"&TEXT(MID(dms_CRYf_y4,3,2)+2,"00") -> 2012-13 | Q137: dms_CRYf_y5 | R137: =VALUE(LEFT(dms_CRYc_y4,4)+1) -> 2013 | S137: dms_CRYc_y5
B138: 6 | C138: dms_FRCP_y6 | D138: 6 | E138: CRCP_y6 | F138: =IF(dms_RPT="financial",VALUE(LEFT(dms_FRCP_y5,4)+1)&"-"&TEXT(VALUE(RIGHT(dms_FRCP_y5,2)+1),"00"),VALUE(LEFT(dms_FRCP_y5,4)+1)) -> 2013-14 | G138: dms_FRCP_y6 | H138: =IF(dms_RPT="financial",VALUE(LEFT(dms_CRCP_yV,4)-1)&"-"&TEXT(VALUE(MID(dms_CRCP_yV,3,2)),"00"),VALUE(LEFT(dms_CRCP_yV,4)-1)) -> 2002-03 | I138: dms_CRCP_yU | J138: 6 | L138: 2010-11 | M138: 2011 | P138: =VALUE(LEFT(dms_CRYf_y5,4)+1)&"-"&TEXT(MID(dms_CRYf_y5,3,2)+2,"00") -> 2013-14 | Q138: dms_CRYf_y6 | R138: =VALUE(LEFT(dms_CRYc_y5,4)+1) -> 2014 | S138: dms_CRYc_y6
B139: 7 | C139: dms_FRCP_y7 | D139: 7 | E139: CRCP_y7 | F139: =IF(dms_RPT="financial",VALUE(LEFT(dms_FRCP_y6,4)+1)&"-"&TEXT(VALUE(RIGHT(dms_FRCP_y6,2)+1),"00"),VALUE(LEFT(dms_FRCP_y6,4)+1)) -> 2014-15 | G139: dms_FRCP_y7 | H139: =IF(dms_RPT="financial",VALUE(LEFT(dms_CRCP_yU,4)-1)&"-"&TEXT(VALUE(MID(dms_CRCP_yU,3,2)),"00"),VALUE(LEFT(dms_CRCP_yU,4)-1)) -> 2001-02 | I139: dms_CRCP_yT | J139: 7 | L139: 2011-12 | M139: 2012 | P139: =VALUE(LEFT(dms_CRYf_y6,4)+1)&"-"&TEXT(MID(dms_CRYf_y6,3,2)+2,"00") -> 2014-15 | Q139: dms_CRYf_y7 | R139: =VALUE(LEFT(dms_CRYc_y6,4)+1) -> 2015 | S139: dms_CRYc_y7
B140: 8 | C140: dms_FRCP_y8 | D140: 8 | E140: CRCP_y8 | F140: =IF(dms_RPT="financial",VALUE(LEFT(dms_FRCP_y7,4)+1)&"-"&TEXT(VALUE(RIGHT(dms_FRCP_y7,2)+1),"00"),VALUE(LEFT(dms_FRCP_y7,4)+1)) -> 2015-16 | G140: dms_FRCP_y8 | H140: =IF(dms_RPT="financial",VALUE(LEFT(dms_CRCP_yT,4)-1)&"-"&TEXT(VALUE(MID(dms_CRCP_yT,3,2)),"00"),VALUE(LEFT(dms_CRCP_yT,4)-1)) -> 2000-01 | I140: dms_CRCP_yS | J140: 8 | L140: 2012-13 | M140: 2013 | P140: =VALUE(LEFT(dms_CRYf_y7,4)+1)&"-"&TEXT(MID(dms_CRYf_y7,3,2)+2,"00") -> 2015-16 | Q140: dms_CRYf_y8 | R140: =VALUE(LEFT(dms_CRYc_y7,4)+1) -> 2016 | S140: dms_CRYc_y8
B141: 9 | C141: dms_FRCP_y9 | D141: 9 | E141: CRCP_y9 | F141: =IF(dms_RPT="financial",VALUE(LEFT(dms_FRCP_y8,4)+1)&"-"&TEXT(VALUE(RIGHT(dms_FRCP_y8,2)+1),"00"),VALUE(LEFT(dms_FRCP_y8,4)+1)) -> 2016-17 | G141: dms_FRCP_y9 | H141: =IF(dms_RPT="financial",VALUE(LEFT(dms_CRCP_yS,4)-1)&"-"&TEXT(VALUE(MID(dms_CRCP_yS,3,2)),"00"),VALUE(LEFT(dms_CRCP_yS,4)-1)) -> 1999-00 | I141: dms_CRCP_yR | J141: 9 | L141: 2013-14 | M141: 2014 | P141: =VALUE(LEFT(dms_CRYf_y8,4)+1)&"-"&TEXT(MID(dms_CRYf_y8,3,2)+2,"00") -> 2016-17 | Q141: dms_CRYf_y9 | R141: =VALUE(LEFT(dms_CRYc_y8,4)+1) -> 2017 | S141: dms_CRYc_y9
B142: 10 | C142: dms_FRCP_y10 | D142: 10 | E142: CRCP_y10 | F142: =IF(dms_RPT="financial",VALUE(LEFT(dms_FRCP_y9,4)+1)&"-"&TEXT(VALUE(RIGHT(dms_FRCP_y9,2)+1),"00"),VALUE(LEFT(dms_FRCP_y9,4)+1)) -> 2017-18 | G142: dms_FRCP_y10 | H142: =IF(dms_RPT="financial",VALUE(LEFT(dms_CRCP_yR,4)-1)&"-"&TEXT(VALUE(MID(dms_CRCP_yR,3,2)),"00"),VALUE(LEFT(dms_CRCP_yR,4)-1)) -> 1998-99 | I142: dms_CRCP_yQ | J142: 10 | L142: 2014-15 | M142: 2015 | P142: =VALUE(LEFT(dms_CRYf_y9,4)+1)&"-"&TEXT(MID(dms_CRYf_y9,3,2)+2,"00") -> 2017-18 | Q142: dms_CRYf_y10 | R142: =VALUE(LEFT(dms_CRYc_y9,4)+1) -> 2018 | S142: dms_CRYc_y10
B143: 11 | C143: dms_FRCP_y11 | D143: 11 | E143: CRCP_y11 | F143: =IF(dms_RPT="financial",VALUE(LEFT(dms_FRCP_y10,4)+1)&"-"&TEXT(VALUE(RIGHT(dms_FRCP_y10,2)+1),"00"),VALUE(LEFT(dms_FRCP_y10,4)+1)) -> 2018-19 | G143: dms_FRCP_y11 | H143: =IF(dms_RPT="financial",VALUE(LEFT(dms_CRCP_yQ,4)-1)&"-"&TEXT(VALUE(MID(dms_CRCP_yQ,3,2)),"00"),VALUE(LEFT(dms_CRCP_yQ,4)-1)) -> 1997-98 | I143: dms_CRCP_yP | J143: 11 | L143: 2015-16 | M143: 2016 | P143: =VALUE(LEFT(dms_CRYf_y10,4)+1)&"-"&TEXT(MID(dms_CRYf_y10,3,2)+2,"00") -> 2018-19 | Q143: dms_CRYf_y11 | R143: =VALUE(LEFT(dms_CRYc_y10,4)+1) -> 2019 | S143: dms_CRYc_y11
B144: 12 | C144: dms_FRCP_y12 | D144: 12 | E144: CRCP_y12 | F144: =IF(dms_RPT="financial",VALUE(LEFT(dms_FRCP_y11,4)+1)&"-"&TEXT(VALUE(RIGHT(dms_FRCP_y11,2)+1),"00"),VALUE(LEFT(dms_FRCP_y11,4)+1)) -> 2019-20 | G144: dms_FRCP_y12 | H144: =IF(dms_RPT="financial",VALUE(LEFT(dms_CRCP_yP,4)-1)&"-"&TEXT(VALUE(MID(dms_CRCP_yP,3,2)),"00"),VALUE(LEFT(dms_CRCP_yP,4)-1)) -> 1996-97 | I144: dms_CRCP_yO | J144: 12 | L144: 2016-17 | M144: 2017 | P144: =VALUE(LEFT(dms_CRYf_y11,4)+1)&"-"&TEXT(MID(dms_CRYf_y11,3,2)+2,"00") -> 2019-20 | Q144: dms_CRYf_y12 | R144: =VALUE(LEFT(dms_CRYc_y11,4)+1) -> 2020 | S144: dms_CRYc_y12
B145: 13 | C145: dms_FRCP_y13 | D145: 13 | E145: CRCP_y13 | F145: =IF(dms_RPT="financial",VALUE(LEFT(dms_FRCP_y12,4)+1)&"-"&TEXT(VALUE(RIGHT(dms_FRCP_y12,2)+1),"00"),VALUE(LEFT(dms_FRCP_y12,4)+1)) -> 2020-21 | G145: dms_FRCP_y13 | H145: =IF(dms_RPT="financial",VALUE(LEFT(dms_CRCP_yO,4)-1)&"-"&TEXT(VALUE(MID(dms_CRCP_yO,3,2)),"00"),VALUE(LEFT(dms_CRCP_yO,4)-1)) -> 1995-96 | I145: dms_CRCP_yN | J145: 13 | L145: 2017-18 | M145: 2018 | P145: =VALUE(LEFT(dms_CRYf_y12,4)+1)&"-"&TEXT(MID(dms_CRYf_y12,3,2)+2,"00") -> 2020-21 | Q145: dms_CRYf_y13 | R145: =VALUE(LEFT(dms_CRYc_y12,4)+1) -> 2021 | S145: dms_CRYc_y13
B146: 14 | C146: dms_FRCP_y14 | D146: 14 | E146: CRCP_y14 | F146: =IF(dms_RPT="financial",VALUE(LEFT(dms_FRCP_y13,4)+1)&"-"&TEXT(VALUE(RIGHT(dms_FRCP_y13,2)+1),"00"),VALUE(LEFT(dms_FRCP_y13,4)+1)) -> 2021-22 | G146: dms_FRCP_y14 | H146: =IF(dms_RPT="financial",VALUE(LEFT(dms_CRCP_yN,4)-1)&"-"&TEXT(VALUE(MID(dms_CRCP_yN,3,2)),"00"),VALUE(LEFT(dms_CRCP_yN,4)-1)) -> 1994-95 | I146: dms_CRCP_yM | J146: 14 | L146: 2018-19 | M146: 2019 | P146: =VALUE(LEFT(dms_CRYf_y13,4)+1)&"-"&TEXT(MID(dms_CRYf_y13,3,2)+2,"00") -> 2021-22 | Q146: dms_CRYf_y14 | R146: =VALUE(LEFT(dms_CRYc_y13,4)+1) -> 2022 | S146: dms_CRYc_y14
B147: 15 | C147: dms_FRCP_y15 | D147: 15 | E147: CRCP_y15 | F147: =IF(dms_RPT="financial",VALUE(LEFT(dms_FRCP_y14,4)+1)&"-"&TEXT(VALUE(RIGHT(dms_FRCP_y14,2)+1),"00"),VALUE(LEFT(dms_FRCP_y14,4)+1)) -> 2022-23 | G147: dms_FRCP_y15 | H147: =IF(dms_RPT="financial",VALUE(LEFT(dms_CRCP_yM,4)-1)&"-"&TEXT(VALUE(MID(dms_CRCP_yM,3,2)),"00"),VALUE(LEFT(dms_CRCP_yM,4)-1)) -> 1993-94 | I147: dms_CRCP_yL | J147: 15 | L147: 2019-20 | M147: 2020 | P147: =VALUE(LEFT(dms_CRYf_y14,4)+1)&"-"&TEXT(MID(dms_CRYf_y14,3,2)+2,"00") -> 2022-23 | Q147: dms_CRYf_y15 | R147: =VALUE(LEFT(dms_CRYc_y14,4)+1) -> 2023 | S147: dms_CRYc_y15
L148: 2020-21 | M148: 2021 | P148: =VALUE(LEFT(dms_CRYf_y15,4)+1)&"-"&TEXT(MID(dms_CRYf_y15,3,2)+2,"00") -> 2023-24 | Q148: dms_CRYf_y16 | R148: =VALUE(LEFT(dms_CRYc_y15,4)+1) -> 2024 | S148: dms_CRYc_y16
B149: These are drop down lists for businesses to select the correct FRCP_y1 on the business and other details worksheet. This also populates the column headings in the worksheets | L149: 2021-22 | M149: 2022 | P149: =VALUE(LEFT(dms_CRYf_y16,4)+1)&"-"&TEXT(MID(dms_CRYf_y16,3,2)+2,"00") -> 2024-25 | Q149: dms_CRYf_y17 | R149: =VALUE(LEFT(dms_CRYc_y16,4)+1) -> 2025 | S149: dms_CRYc_y17
B150: dms_RCP_fyear_list | C150: dms_CRY_ListF | D150: dms_CRY_ListC | E150: dms_RCP_cyear_list | F150: dms_FRCP_fyear_list | G150: dms_FRCP_ListF | H150: dms_FRCP_ListC | I150: dms_FRCP_cyear_list | L150: 2022-23 | M150: 2023 | P150: =VALUE(LEFT(dms_CRYf_y17,4)+1)&"-"&TEXT(MID(dms_CRYf_y17,3,2)+2,"00") -> 2025-26 | Q150: dms_CRYf_y18 | R150: =VALUE(LEFT(dms_CRYc_y17,4)+1) -> 2026 | S150: dms_CRYc_y18
B151: dms_y1 | C151: =CRY -> 2008-09 | D151: 2006 | E151: dms_cy1 | F151: dms_frcp_fy1 | G151: 2010-11 | H151: 2011 | I151: dms_crcp_cy1 | L151: 2023-24 | M151: 2024 | P151: =VALUE(LEFT(dms_CRYf_y18,4)+1)&"-"&TEXT(MID(dms_CRYf_y18,3,2)+2,"00") -> 2026-27 | Q151: dms_CRYf_y19 | R151: =VALUE(LEFT(dms_CRYc_y18,4)+1) -> 2027 | S151: dms_CRYc_y19
B152: dms_y2 | C152: =IF(dms_RPT="financial",VALUE(LEFT(CRY,4)+1)&"-"&TEXT(MID(CRY,3,2)+2,"00"),VALUE(LEFT(CRY,4)+1)) -> 2009-10 | D152: 2007 | E152: dms_cy2 | F152: dms_frcp_fy2 | G152: 2011-12 | H152: 2012 | I152: dms_crcp_cy2 | L152: 2024-25 | M152: 2025 | P152: =VALUE(LEFT(dms_CRYf_y19,4)+1)&"-"&TEXT(MID(dms_CRYf_y19,3,2)+2,"00") -> 2027-28 | Q152: dms_CRYf_y20 | R152: =VALUE(LEFT(dms_CRYc_y19,4)+1) -> 2028 | S152: dms_CRYc_y20
B153: dms_y3 | C153: =IF(dms_RPT="financial",VALUE(LEFT(dms_fy2,4)+1)&"-"&TEXT(MID(dms_fy2,3,2)+2,"00"),VALUE(LEFT(dms_fy2,4)+1)) -> 2010-11 | D153: 2008 | E153: dms_cy3 | F153: dms_frcp_fy3 | G153: 2012-13 | H153: 2013 | I153: dms_crcp_cy3 | L153: 2025-26 | M153: 2026
B154: dms_y4 | C154: =IF(dms_RPT="financial",VALUE(LEFT(dms_fy3,4)+1)&"-"&TEXT(MID(dms_fy3,3,2)+2,"00"),VALUE(LEFT(dms_fy3,4)+1)) -> 2011-12 | D154: 2009 | E154: dms_cy4 | F154: dms_frcp_fy4 | G154: 2013-14 | H154: 2014 | I154: dms_crcp_cy4 | L154: 2026-27 | M154: 2027
B155: dms_y5 | C155: =IF(dms_RPT="financial",VALUE(LEFT(dms_fy4,4)+1)&"-"&TEXT(MID(dms_fy4,3,2)+2,"00"),VALUE(LEFT(dms_fy4,4)+1)) -> 2012-13 | D155: 2010 | E155: dms_cy5 | F155: dms_frcp_fy5 | G155: 2014-15 | H155: 2015 | I155: dms_crcp_cy5 | L155: 2027-28 | M155: 2028
B156: dms_y6 | C156: =IF(dms_RPT="financial",VALUE(LEFT(dms_fy5,4)+1)&"-"&TEXT(MID(dms_fy5,3,2)+2,"00"),VALUE(LEFT(dms_fy5,4)+1)) -> 2013-14 | D156: 2011 | E156: dms_cy6 | F156: dms_frcp_fy6 | G156: 2015-16 | H156: 2016 | I156: dms_crcp_cy6 | L156: 2028-29 | M156: 2029
B157: dms_y7 | C157: =IF(dms_RPT="financial",VALUE(LEFT(dms_fy6,4)+1)&"-"&TEXT(MID(dms_fy6,3,2)+2,"00"),VALUE(LEFT(dms_fy6,4)+1)) -> 2014-15 | D157: 2012 | E157: dms_cy7 | F157: dms_frcp_fy7 | G157: 2016-17 | H157: 2017 | I157: dms_crcp_cy7 | L157: 2029-30 | M157: 2030
B158: dms_y8 | C158: =IF(dms_RPT="financial",VALUE(LEFT(dms_fy7,4)+1)&"-"&TEXT(MID(dms_fy7,3,2)+2,"00"),VALUE(LEFT(dms_fy7,4)+1)) -> 2015-16 | D158: 2013 | E158: dms_cy8 | F158: dms_frcp_fy8 | G158: 2017-18 | H158: 2018 | I158: dms_crcp_cy8 | L158: 2030-31 | M158: 2031
B159: dms_y9 | C159: =IF(dms_RPT="financial",VALUE(LEFT(dms_fy8,4)+1)&"-"&TEXT(MID(dms_fy8,3,2)+2,"00"),VALUE(LEFT(dms_fy8,4)+1)) -> 2016-17 | D159: 2014 | E159: dms_cy9 | F159: dms_frcp_fy9 | G159: 2018-19 | H159: 2019 | I159: dms_crcp_cy9 | L159: 2031-32 | M159: 2032
B160: dms_y10 | C160: =IF(dms_RPT="financial",VALUE(LEFT(dms_fy9,4)+1)&"-"&TEXT(MID(dms_fy9,3,2)+2,"00"),VALUE(LEFT(dms_fy9,4)+1)) -> 2017-18 | D160: 2015 | E160: dms_cy10 | F160: dms_frcp_fy10 | G160: 2019-20 | H160: 2020 | I160: dms_crcp_cy10 | L160: 2032-33 | M160: 2033
B161: dms_y11 | C161: =IF(dms_RPT="financial",VALUE(LEFT(dms_fy10,4)+1)&"-"&TEXT(MID(dms_fy10,3,2)+2,"00"),VALUE(LEFT(dms_fy10,4)+1)) -> 2018-19 | D161: 2016 | E161: dms_cy11 | F161: dms_frcp_fy11 | G161: 2020-21 | H161: 2021 | I161: dms_crcp_cy11 | L161: 2033-34 | M161: 2034
B162: dms_y12 | C162: =IF(dms_RPT="financial",VALUE(LEFT(dms_fy11,4)+1)&"-"&TEXT(MID(dms_fy11,3,2)+2,"00"),VALUE(LEFT(dms_fy11,4)+1)) -> 2019-20 | D162: 2017 | E162: dms_cy12 | F162: dms_frcp_fy12 | G162: 2021-22 | H162: 2022 | I162: dms_crcp_cy12 | L162: 2034-35 | M162: 2035
B163: dms_y13 | C163: =IF(dms_RPT="financial",VALUE(LEFT(dms_fy12,4)+1)&"-"&TEXT(MID(dms_fy12,3,2)+2,"00"),VALUE(LEFT(dms_fy12,4)+1)) -> 2020-21 | D163: 2018 | E163: dms_cy13 | F163: dms_frcp_fy13 | G163: 2022-23 | H163: 2023 | I163: dms_crcp_cy13 | L163: 2035-36 | M163: 2036
B164: dms_y14 | C164: =IF(dms_RPT="financial",VALUE(LEFT(dms_fy13,4)+1)&"-"&TEXT(MID(dms_fy13,3,2)+2,"00"),VALUE(LEFT(dms_fy13,4)+1)) -> 2021-22 | D164: 2019 | E164: dms_cy14 | F164: dms_frcp_fy14 | G164: 2023-24 | H164: 2024 | I164: dms_crcp_cy14
B165: dms_y15 | C165: =IF(dms_RPT="financial",VALUE(LEFT(dms_fy14,4)+1)&"-"&TEXT(MID(dms_fy14,3,2)+2,"00"),VALUE(LEFT(dms_fy14,4)+1)) -> 2022-23 | D165: 2020 | E165: dms_cy15 | F165: dms_frcp_fy15 | G165: 2024-25 | H165: 2025 | I165: dms_crcp_cy15
B166: dms_y16 | C166: =IF(dms_RPT="financial",VALUE(LEFT(dms_fy15,4)+1)&"-"&TEXT(MID(dms_fy15,3,2)+2,"00"),VALUE(LEFT(dms_fy15,4)+1)) -> 2023-24 | D166: 2021 | E166: dms_cy16
B167: dms_y17 | C167: =IF(dms_RPT="financial",VALUE(LEFT(dms_fy16,4)+1)&"-"&TEXT(MID(dms_fy16,3,2)+2,"00"),VALUE(LEFT(dms_fy16,4)+1)) -> 2024-25 | D167: 2022 | E167: dms_cy17
B168: dms_y18 | C168: =IF(dms_RPT="financial",VALUE(LEFT(dms_fy17,4)+1)&"-"&TEXT(MID(dms_fy17,3,2)+2,"00"),VALUE(LEFT(dms_fy17,4)+1)) -> 2025-26 | D168: 2023 | E168: dms_cy18
B169: dms_y19 | C169: =IF(dms_RPT="financial",VALUE(LEFT(dms_fy18,4)+1)&"-"&TEXT(MID(dms_fy18,3,2)+2,"00"),VALUE(LEFT(dms_fy18,4)+1)) -> 2026-27 | D169: 2024 | E169: dms_cy19
B170: dms_y20 | C170: =IF(dms_RPT="financial",VALUE(LEFT(dms_fy19,4)+1)&"-"&TEXT(MID(dms_fy19,3,2)+2,"00"),VALUE(LEFT(dms_fy19)+1)) -> 2027-28 | D170: 2025 | E170: dms_cy20
B176: These "row descriptions" are the column headings in the various templates but become row descriptions in the ETL process
C177: Table 6.3 sustained interruptions - row descriptions
C178: dms_060301_CustNo_Affected_Row | D178: dms_060301_Avg_Duration_Sustained_Int_Row | E178: dms_060301_Effect_unplanned_SAIDI_Row | F178: dms_060301_Effect_unplanned_SAIFI_Row
C179: Number of customers affected by the interruption | D179: Average duration of sustained customer interruption | E179: Effect on unplanned SAIDI | F179: Effect on unplanned SAIFI
C183: Table 6.1 telephone answering - row descriptions and start date
C184: dms_060101_Rows | D184: dms_060102_Rows | E184: dms_060101_StartDateTxt
C185: Total number of calls (after removing excluded events) | D185: Number of calls answered within 30 seconds (after excluding excluded events) | E185: =dms_060701_StartDateTxt -> 1-Jul-2008
H189: dms_0603_FeederList | I189: =INDEX(dms_FeederName_1,MATCH(dms_TradingName,dms_TradingName_List)) -> CBD | J189: =INDEX(dms_FeederName_2,MATCH(dms_TradingName,dms_TradingName_List)) -> Urban | K189: =INDEX(dms_FeederName_3,MATCH(dms_TradingName,dms_TradingName_List)) -> Short rural | L189: =INDEX(dms_FeederName_4,MATCH(dms_TradingName,dms_TradingName_List)) -> Long rural
C190: Table 6.7.1 - daily performance data - unplanned - MAIFI -- row descriptions and header named range values
C191: These headings (Lists) are determined from the INDEX/MATCH function on the NSP selected on the Business & other details sheet
B192: dms_060701_Feeder_Header_Lvl4 | C192: =INDEX(dms_FeederName_1,MATCH(dms_TradingName,dms_TradingName_List)) -> CBD | D192: =INDEX(dms_FeederName_1,MATCH(dms_TradingName,dms_TradingName_List)) -> CBD | E192: =INDEX(dms_FeederName_2,MATCH(dms_TradingName,dms_TradingName_List)) -> Urban | F192: =INDEX(dms_FeederName_2,MATCH(dms_TradingName,dms_TradingName_List)) -> Urban | G192: =INDEX(dms_FeederName_3,MATCH(dms_TradingName,dms_TradingName_List)) -> Short rural | H192: =INDEX(dms_FeederName_3,MATCH(dms_TradingName,dms_TradingName_List)) -> Short rural | I192: =INDEX(dms_FeederName_4,MATCH(dms_TradingName,dms_TradingName_List)) -> Long rural | J192: =INDEX(dms_FeederName_4,MATCH(dms_TradingName,dms_TradingName_List)) -> Long rural | K192: =IF((INDEX(dms_FeederName_5,MATCH(dms_TradingName,dms_TradingName_List))=0),"Network",(INDEX(dms_FeederName_5,MATCH(dms_TradingName,dms_TradingName_List)))) -> Network | L192: =IF((INDEX(dms_FeederName_5,MATCH(dms_TradingName,dms_TradingName_List))=0),"Network",(INDEX(dms_FeederName_5,MATCH(dms_TradingName,dms_TradingName_List)))) -> Network | M192: Network | N192: Network
B194: dms_060701_Rows | C194: All events | D194: After removing excluded events | E194: All events | F194: After removing excluded events | G194: All events | H194: After removing excluded events | I194: All events | J194: After removing excluded events | K194: All events | L194: After removing excluded events | M194: All events | N194: After removing excluded events
C195: the number of column headings changes from 10 to 12 depending on the number of feeder categories for the NSP
C200: Table 6.8.1 - row descriptions
C201: dms_060801_01_Rows | D201: dms_060801_02_Rows | E201: dms_060801_03_Rows | F201: dms_060801_04_Rows
C202: Number of interruptions | D202: Duration of interruptions | E202: Total unplanned minutes off supply | F202: Effect on unplanned MAIFI
C207: Table 7.9.4 - market impact component - row descriptions
B208: dms_070904_01_Rows | C208: without exclusions | D208: with exclusions
C214: Use this to add to existing files
C215: ARRs 6.7 STPIS daily performance
C216: dms_060101_Values | D216: dms_060102_Values | E216: dms_060701_Values
C218: ARR's 6.8 STPIS exclusions
C219: dms_060801_Event_Date | D219: dms_060801_OutageID | E219: dms_060801_FeederID | F219: dms_060801_FeederClass | G219: dms_060801_CauseID | H219: dms_060801_01_Values | I219: dms_060801_02_Values | J219: dms_060801_03_Values | K219: dms_060801_Excl_Cat | L219: dms_060801_04_Values
C220: dms_060801_StartCell
C222: CA 6.3 sustained interruptions
C223: dms_060301_Event_Date | D223: dms_060301_Event_Time | E223: dms_060301_AssetID | F223: dms_060301_FeederClass | G223: dms_060301_Reason | H223: dms_060301_DetailedReason | I223: dms_060301_CustNo_Affected_Values | J223: dms_060301_Avg_Duration_Sustained_Int_Values | K223: dms_060301_Effect_unplanned_SAIDI_Values | L223: dms_060301_Effect_unplanned_SAIFI_Values | M223: dms_060301_MED

Sheet Business & other details
B1: =IF(dms_DataQuality="backcast",INDEX(dms_Worksheet_List,MATCH(dms_Model,dms_Model_List))&" BACKCAST",INDEX(dms_Worksheet_List,MATCH(dms_Model,dms_Model_List))) -> CATEGORY ANALYSIS
B2: =INDEX(dms_TradingNameFull_List,MATCH(dms_TradingName,dms_TradingName_List)) -> Energex
B3: =IF(SUM(dms_SingleYear_Model)>0,CONCATENATE(CRY),CONCATENATE(FRCP_y1," to ",dms_MultiYear_FinalYear_Result)) -> 2008-09
B4: BUSINESS & OTHER DETAILS
B7: Instructions
B8: Complete the following business details regulatory template before entering data or values in any other regulatory template. This regulatory template is linked to other cells within the spreadsheet and automatically generates column headings and conditional formatting to distinguish business specific input and non-input cells.
B10: SUBMISSION PARTICULARS INPUT SHEETS
B12: ENTITY DETAILS
B14: Short name | C14: Energex | F14: Select business name from drop down list first
B15: ACN / ABN | C15: =INDEX(dms_ABN_List,MATCH(dms_TradingName,dms_TradingName_List)) -> 40078849055
B18: Business address | C18: Address 1 | E18: =INDEX(dms_Addr1_List,MATCH(dms_TradingName,dms_TradingName_List)) -> 26 Reddacliff Street
D19: Address 2 | E19: =IF(ISBLANK(INDEX(dms_Addr2_List,MATCH(dms_TradingName,dms_TradingName_List))),"",(INDEX(dms_Addr2_List,MATCH(dms_TradingName,dms_TradingName_List)))) -> 
C20: Suburb | E20: =INDEX(dms_Suburb_List,MATCH(dms_TradingName,dms_TradingName_List)) -> NEWSTEAD
D21: State | E21: =INDEX(dms_State_List,MATCH(dms_TradingName,dms_TradingName_List)) -> Qld | F21: p/code | G21: =INDEX(dms_PostCode_List,MATCH(dms_TradingName,dms_TradingName_List)) -> 4006
B23: Postal address | C23: Address 1 | E23: GPO Box 1461
D24: Address 2
C25: Suburb | E25: Brisbane
D26: State | E26: =INDEX(dms_PState_List,MATCH(dms_TradingName,dms_TradingName_List)) -> QLD | F26: p/code | G26: 4001
B29: Contact name/s | C29: Karen Stafford | F29: Group Manager Legal, Regulation & Pricing
B30: Contact phone/s | C30: (07) 3851 6793
B31: Contact email address/s | C31: karen.stafford@energyq.com.au
B33: REGULATORY CONTROL PERIODS
B35: Forthcoming regulatory control period | C35: 2008-09 | D35: =dms_FRCP_y2 -> 2009-10 | E35: =dms_FRCP_y3 -> 2010-11 | F35: =dms_FRCP_y4 -> 2011-12 | G35: =dms_FRCP_y5 -> 2012-13
C36: =dms_FRCP_y6 -> 2013-14 | D36: =dms_FRCP_y7 -> 2014-15 | E36: =dms_FRCP_y8 -> 2015-16 | F36: =dms_FRCP_y9 -> 2016-17 | G36: =dms_FRCP_y10 -> 2017-18
B39: Current regulatory control period | C39: =dms_CRCP_FirstYear_Result -> 2003-04 | D39: =IF(dms_RPT="financial",VALUE(LEFT(CRCP_y1,4)+1)&"-"&TEXT(MID(CRCP_y1,3,2)+2,"00"),VALUE(LEFT(CRCP_y1,4)+1)) -> 2004-05 | E39: =IF(dms_RPT="financial",VALUE(LEFT(CRCP_y1,4)+2)&"-"&TEXT(VALUE(MID(CRCP_y1,3,2)+3),"00"),VALUE(LEFT(CRCP_y1,4)+2)) -> 2005-06 | F39: =IF(dms_RPT="financial",VALUE(LEFT(CRCP_y1,4)+3)&"-"&TEXT(MID(CRCP_y1,3,2)+4,"00"),VALUE(LEFT(CRCP_y1,4)+3)) -> 2006-07 | G39: =IF(dms_RPT="financial",VALUE(LEFT(CRCP_y1,4)+4)&"-"&TEXT(MID(CRCP_y1,3,2)+5,"00"),VALUE(LEFT(CRCP_y1,4)+4)) -> 2007-08
C40: =IF(dms_RPT="financial",VALUE(LEFT(CRCP_y1,4)+5)&"-"&TEXT(MID(CRCP_y1,3,2)+6,"00"),VALUE(LEFT(CRCP_y1,4)+5)) -> 2008-09 | D40: =IF(dms_RPT="financial",VALUE(LEFT(CRCP_y1,4)+6)&"-"&TEXT(MID(CRCP_y1,3,2)+7,"00"),VALUE(LEFT(CRCP_y1,4)+6)) -> 2009-10 | E40: =IF(dms_RPT="financial",VALUE(LEFT(CRCP_y1,4)+7)&"-"&TEXT(MID(CRCP_y1,3,2)+8,"00"),VALUE(LEFT(CRCP_y1,4)+7)) -> 2010-11 | F40: =IF(dms_RPT="financial",VALUE(LEFT(CRCP_y1,4)+8)&"-"&TEXT(MID(CRCP_y1,3,2)+9,"00"),VALUE(LEFT(CRCP_y1,4)+8)) -> 2011-12 | G40: =IF(dms_RPT="financial",VALUE(LEFT(CRCP_y1,4)+9)&"-"&TEXT(MID(CRCP_y1,3,2)+10,"00"),VALUE(LEFT(CRCP_y1,4)+9)) -> 2012-13
C41: =IF(dms_RPT="financial",VALUE(LEFT(CRCP_y1,4)+10)&"-"&TEXT(MID(CRCP_y1,3,2)+11,"00"),VALUE(LEFT(CRCP_y1,4)+10)) -> 2013-14 | D41: =IF(dms_RPT="financial",VALUE(LEFT(CRCP_y1,4)+11)&"-"&TEXT(MID(CRCP_y1,3,2)+12,"00"),VALUE(LEFT(CRCP_y1,4)+11)) -> 2014-15 | E41: =IF(dms_RPT="financial",VALUE(LEFT(CRCP_y1,4)+12)&"-"&TEXT(MID(CRCP_y1,3,2)+13,"00"),VALUE(LEFT(CRCP_y1,4)+12)) -> 2015-16 | F41: =IF(dms_RPT="financial",VALUE(LEFT(CRCP_y1,4)+13)&"-"&TEXT(MID(CRCP_y1,3,2)+14,"00"),VALUE(LEFT(CRCP_y1,4)+13)) -> 2016-17 | G41: =IF(dms_RPT="financial",VALUE(LEFT(CRCP_y1,4)+14)&"-"&TEXT(MID(CRCP_y1,3,2)+15,"00"),VALUE(LEFT(CRCP_y1,4)+14)) -> 2017-18
B44: Previous regulatory control period | C44: =IF(dms_RPT="financial",VALUE(LEFT(PRCP_y2,4)-1)&"-"&TEXT(VALUE(MID(PRCP_y2,3,2)),"00"),VALUE(LEFT(PRCP_y2,4)-1)) -> 1998-99 | D44: =IF(dms_RPT="financial",VALUE(LEFT(PRCP_y3,4)-1)&"-"&TEXT(VALUE(MID(PRCP_y3,3,2)),"00"),VALUE(LEFT(PRCP_y3,4)-1)) -> 1999-00 | E44: =IF(dms_RPT="financial",VALUE(LEFT(PRCP_y4,4)-1)&"-"&TEXT(VALUE(MID(PRCP_y4,3,2)),"00"),VALUE(LEFT(PRCP_y4,4)-1)) -> 2000-01 | F44: =IF(dms_RPT="financial",VALUE(LEFT(PRCP_y5,4)-1)&"-"&TEXT(VALUE(RIGHT(PRCP_y5,2)-1),"00"),VALUE(LEFT(PRCP_y5,4)-1)) -> 2001-02 | G44: =IF(dms_RPT="financial",VALUE(LEFT(CRCP_y1,4)-1)&"-"&TEXT(VALUE(RIGHT(CRCP_y1,2)-1),"00"),VALUE(LEFT(CRCP_y1,4)-1)) -> 2002-03
B48: Commencing regulatory year | C48: 2008-09 | D48: CRY
B50: Last completed regulatory year | C50: 2017-18 | D50: dms_FinalYear
C54: IF THIS IS AN ABC RIN - make sure the the named range CRY is applied and the named range dms_dollar_nom_UOM is applied
C55: IF THIS IS A RESET RIN - make sure the named ranges CRY and dms_dollar_nom_UOM are NOT present in the workbook
C56: FOR ABC RINS THAT SPAN MULTIPLE YEARS - make sure MultiYear Flag is set and final year entered as required
B58: Source | C58: Regulatory proposal | E58: Please select the correct submission type from the dropdown list.
B59: Data quality (actual, estimate, public, consolidated) | C59: Public | E59: Use Consolidated for Consolidated Confidential version Use Public for Consolidated Public version
B60: Amended RIN submission - amendment reason | C60: Supporting Attachment - unaudited consolidation of recast data with previously reported data as agreed with the AER on 28/11/2018
B61: Submission Date | C61: 2019-01-31 | D61: dms_SubmissionDate | E61: Please enter date this file submitted to AER (dd/mm/yyyy)
B62: EBSS - First application of scheme in forthcoming period? | C62: No
B63: Sector | C63: =INDEX(dms_Sector_List,MATCH(dms_TradingName,dms_TradingName_List)) -> Electricity | D63: dms_Sector | E63: =INDEX(dms_Sector_List,MATCH(dms_TradingName,dms_TradingName_List))
B64: Segment | C64: =INDEX(dms_Segment_List,MATCH(dms_TradingName,dms_TradingName_List)) -> Distribution | D64: dms_Segment | E64: =INDEX(dms_Segment_List,MATCH(dms_TradingName,dms_TradingName_List))
B65: Regulatory Year Ending | C65: =IF(dms_MultiYear_Flag=1,LEFT(dms_Specified_FinalYear,2)&RIGHT(dms_Specified_FinalYear,2),INDEX(dms_RYE_Formula_Result,MATCH(dms_Model,dms_Model_List))) -> 2018 | D65: dms_RYE | E65: =IF(dms_MultiYear_Flag=1,LEFT(dms_Specified_FinalYear,2)&RIGHT(dms_Specified_FinalYear,2),INDEX(dms_RYE_Formula_Result,MATCH(dms_Model,dms_Model_List)))
B66: Reporting Period Type | C66: =INDEX(dms_RPT_List,MATCH(dms_TradingName,dms_TradingName_List)) -> Financial | D66: dms_RPT | E66: =INDEX(dms_RPT_List,MATCH(dms_TradingName,dms_TradingName_List))
B67: Model or RIN Type | C67: CA | D67: dms_Model | E67: Drop down selection
B68: EB/CA Unit of Measure for Monetary Values | C68: $0s | D68: dms_dollar_nom_UOM | E68: If the cover sheet is attached to an ABC RIN apply the NAMED RANGE to the cell
B69: Security Classification | C69: Public | D69: dms_Classification | E69: Always Public
B70: Jurisdiction | C70: =INDEX(dms_JurisdictionList,MATCH(dms_TradingName,dms_TradingName_List)) -> Qld | D70: dms_Jurisdiction | E70: =INDEX(dms_JurisdictionList,MATCH(dms_TradingName,dms_TradingName_List))
B71: FORECAST and MultiYear RINS
B72: CRY-1 (last full calendar year before CRY) | C72: =IF(dms_RPT="financial",VALUE(LEFT(dms_SingleYear_FinalYear_Result,4)),VALUE(LEFT(dms_SingleYear_FinalYear_Result,4)-1)) -> 2008 | D72: dms_Cal_Year_B4_CRY | E72: '=IF(dms_RPT="financial",VALUE(LEFT(dms_SingleYear_FinalYear_Result,4)),VALUE(LEFT(dms_SingleYear_FinalYear_Result,4)-1))
B73: Dollar $ real month | C73: =INDEX(dms_RPTMonth_List,MATCH(dms_TradingName,dms_TradingName_List)) -> June | D73: dms_RPTMonth | E73: =INDEX(dms_RPTMonth_List,MATCH(dms_TradingName,dms_TradingName_List))
B74: Dollar $ real (the last month before the FRCP_y1) | C74: =IF(SUM(dms_SingleYear_Model)>0,CONCATENATE(dms_RPTMonth)&" "&VALUE((LEFT(CRY,2))&RIGHT(CRY,2)),CONCATENATE(dms_RPTMonth)&" "&VALUE((LEFT(dms_CRCP_FinalYear_Result,2)&RIGHT(dms_CRCP_FinalYear_Result,2)))) -> June 2009 | D74: dms_DollarReal | E74: =IF(SUM(dms_SingleYear_Model)>0,CONCATENATE(dms_RPTMonth)&" "&VALUE((LEFT(CRY,2))&RIGHT(CRY,2)),CONCATENATE(dms_RPTMonth)&" "&VALUE((LEFT(dms_CRCP_FinalYear_Result,2)&RIGHT(dms_CRCP_FinalYear_Result,2))))
B75: Dollar $ real previous year (PRCP_y5) | C75: =IF(SUM(dms_SingleYear_Model)>0,CONCATENATE(dms_RPTMonth)&" "&VALUE(((LEFT(CRY,2))&RIGHT(CRY,2))-1),CONCATENATE(dms_RPTMonth)&" "&VALUE(((LEFT(dms_CRCP_FirstYear_Result,2)&RIGHT(dms_CRCP_FirstYear_Result,2))))-1) -> June 2008 | D75: dms_DollarReal_Prev | E75: =IF(SUM(dms_SingleYear_Model)>0,CONCATENATE(dms_RPTMonth)&" "&VALUE(((LEFT(CRY,2))&RIGHT(CRY,2))-1),CONCATENATE(dms_RPTMonth)&" "&VALUE(((LEFT(dms_CRCP_FirstYear_Result,2)&RIGHT(dms_CRCP_FirstYear_Result,2))))-1)
B76: This block works out the various RYE's for ALL RIN types and MODELS
B77: Single Year Model T/F | C77: =IF(dms_Model="EB",1,0) -> 0 | D77: dms_EB
C78: =IF(dms_Model="CA",1,0) -> 1 | D78: dms_CA | E78: =dms_SingleYear_Model
C79: =IF(dms_Model="ARR",1,0) -> 0 | D79: dms_ARR
B80: Is this a single Year RIN? | C80: =IF(SUM(dms_SingleYear_Model)=1,"yes","no") -> yes | D80: dms_SingleYearModel | E80: =IF(SUM(dms_SingleYear_Model)=1,"yes","no")
B81: Single Year Final Year Reference | C81: CRY | D81: dms_SingleYear_FinalYear_Ref | E81: This is the reference for EB, CA & ARR RINs
B82: Single Year Final Year Result | C82: =IFERROR(IF(SUM(dms_SingleYear_Model)<>0,(INDIRECT(dms_SingleYear_FinalYear_Ref)),"not a single year RIN"),"CRY not present") -> 2008-09 | D82: dms_SingleYear_FinalYear_Result | E82: =IFERROR(IF(SUM(dms_SingleYear_Model)<>0,(INDIRECT(dms_SingleYear_FinalYear_Ref)),"not a single year RIN"),"CRY not present")
B83: FRCP length in years | C83: =INDEX(dms_FRCPlength_List,MATCH(dms_TradingName,dms_TradingName_List)) -> 5 | D83: dms_FRCPlength_Num | E83: =INDEX(dms_FRCPlength_List,MATCH(dms_TradingName,dms_TradingName_List))
B84: Multi Year Final Year Reference | C84: =INDEX(dms_FinalYear_List,MATCH(dms_FRCPlength_Num,dms_FRCPlength_Num_List)) -> dms_FRCP_y5 | D84: dms_MultiYear_FinalYear_Ref | E84: =INDEX(dms_FinalYear_List,MATCH(dms_FRCPlength_Num,dms_FRCPlength_Num_List))
B85: Multi Year Final Year Result | C85: =IF(dms_MultiYear_Flag=0,INDIRECT(dms_MultiYear_FinalYear_Ref),dms_Specified_FinalYear) -> 2017-18 | D85: dms_MultiYear_FinalYear_Result | E85: =IF(dms_MultiYear_Flag=0,INDIRECT(dms_MultiYear_FinalYear_Ref),dms_Specified_FinalYear) | I85: Formula errors OK
B86: CRCP length in years | C86: =INDEX(dms_CRCPlength_List,MATCH(dms_TradingName,dms_TradingName_List)) -> 5 | D86: dms_CRCPlength_Num | E86: =INDEX(dms_CRCPlength_List,MATCH(dms_TradingName,dms_TradingName_List))
B87: CRCP Final Year Reference | C87: =INDEX(dms_CFinalYear_List,MATCH(dms_CRCPlength_Num,dms_CRCPlength_Num_List)) -> CRCP_y5 | D87: dms_CRCP_FinalYear_Ref | E87: =INDEX(dms_CFinalYear_List,MATCH(dms_CRCPlength_Num,dms_CRCPlength_Num_List))
B88: CRCP First Year Result | C88: =INDEX(dms_CRCP_years,MATCH(dms_CRCPlength_Num,dms_CRCP_index)) -> 2003-04 | D88: dms_CRCP_FirstYear_Result | E88: =INDEX(dms_CRCP_years,MATCH(dms_CRCPlength_Num,dms_CRCP_index))
B89: CRCP Final Year Result | C89: =IF(dms_MultiYear_Flag=0,(IF(SUM(dms_SingleYear_Model)>0,CRY,dms_CRCP_yZ)),dms_Specified_FinalYear) -> 2017-18 | D89: dms_CRCP_FinalYear_Result | E89: =IF(dms_MultiYear_Flag=0,(IF(SUM(dms_SingleYear_Model)>0,CRY,dms_CRCP_yZ)),dms_Specified_FinalYear)
B90: PTRM/ RFMs
B91: Form of control | C91: =INDEX(dms_FormControl_List,MATCH(dms_TradingName,dms_TradingName_List)) -> Revenue cap | D91: dms_FormControl | E91: =INDEX(dms_FormControl_List,MATCH(dms_TradingName,dms_TradingName_List))
B92: ABC RINS THAT SPAN MULTIPLE YEARS
B93: Is this a multi year ABC RIN? | C93: Yes
B94: Multiyear EB, CA or ARR? | C94: =IF(dms_MultiYear_ResponseFlag="No",0,1) -> 1 | D94: dms_MultiYear_Flag | E94: This is set from the answer provided above
C95: =IF(dms_MultiYear_Flag=1,FRY,"not a Multiple year submission") -> 2017-18 | D95: dms_Specified_FinalYear | E95: The result here is returned to dms_CRCP_FinalYear_Result if response to Q in C73 is "yes" and dms_MultiYear_Flag is set to 1
B96: Start year for 5.2 in Multi year ABC RINS | C96: =IFERROR(IF(dms_MultiYear_Flag=1,FRY,CRY),"not an ABC") -> 2017-18 | D96: dms_0502_Inst_Year | E96: =IF(dms_MultiYear_Flag=1,FRY,CRY) | G96: For single year RINS this is CRY - multi year RINS need to start a the end of the span of years (ie. FRY)
B97: EB RINS
B98: Calendar Year for table 3.6 data | C98: =IF(dms_RPT="financial",VALUE(LEFT(dms_SingleYear_FinalYear_Result,4)),VALUE(LEFT(dms_SingleYear_FinalYear_Result,4)-1)) -> 2008 | D98: dms_0306_Year | E98: =IF(dms_RPT="financial",VALUE(LEFT(dms_SingleYear_FinalYear_Result,4)),VALUE(LEFT(dms_SingleYear_FinalYear_Result,4)-1))
B99: CA RINS
B100: Find how many rows in tables 6.3 sustained interruptions? | E100: dms_060301_MaxRows only returns a valid value when cover sheet is attached to a CA file
C101: =IF(dms_Model<>"CA","not a CA","Is a CA") -> Is a CA | E101: =IF(dms_Model<>"CA","not a CA","Is a CA")
B102: dms_060301_Avg_Duration_Sustained_Int_Values present? | C102: =IFERROR(IF(INDEX(dms_060301_Avg_Duration_Sustained_Int_Values,1,1)<>"","yes","no"),"no") -> no | D102: dms_060301_checkvalue | E102: =IFERROR(IF(INDEX(dms_060301_Avg_Duration_Sustained_Int_Values,1,1)<>"","yes","no"),"no")
C103: 6.3 not collected in backcast RIN | E103: =IF(AND(dms_Model="CA",(dms_060301_checkvalue="no")),"error - NR not present","no errors")
B104: Table 6.3.1 - last row reference | C104: 0 | D104: dms_060301_LastRow | E104: =IFERROR(IF(dms_Model="CA",LOOKUP(2,1/(dms_060301_Avg_Duration_Sustained_Int_Values<>""),(ROW(dms_060301_Avg_Duration_Sustained_Int_Values))),"not a CA"),"6.3 not present")
B105: Table 6.3.1 - max number rows | C105: 0 | D105: dms_060301_MaxRows | E105: =IFERROR(IF(dms_Model="CA",(dms_060301_LastRow-15),"not a CA"),"error")
B106: Table 6.6.3 - Public lighting repair - no. business days | C106: =INDEX(dms_663_List,MATCH(dms_TradingName,dms_TradingName_List)) -> 5 | D106: dms_663 | E106: =INDEX(dms_663_List,MATCH(dms_TradingName,dms_TradingName_List))
B107: ARR or RESET RINS
B108: How many rows in tables 6.1 or 6.7? (leap year?) | C108: insert dms_LeapYear NR if required | E108: 'dms_LeapYear is used to determine dms_060701_Max_Rows BUT it is only found on worksheet 6.1 or 6.7 and the date value in the cell is used to determine whether it is a leap year
B109: Is dms_LeapYear named range present? | C109: =IFERROR(IF(dms_LeapYear,"yes"),"no") -> no
B110: Table 6.7.1 - includes a leap year? | C110: =IFERROR(IF(MONTH(DATE(YEAR(dms_LeapYear),2,29))=2,"is a leap year","not a leap year"), "dms_LeapYear not present") -> dms_LeapYear not present | D110: dms_LeapYear_Result | E110: =IFERROR(IF(MONTH(DATE(YEAR(dms_LeapYear),2,29))=2,"is a leap year","not a leap year"),"dms_LeapYear not present")
B111: MaxRows if Reset and leap year | C111: =IF(dms_LeapYear_Result="is a leap year",1827,1826) -> 1826 | D111: dms_060701_Reset_MaxRows | E111: =IF(dms_LeapYear_Result="is a leap year",1827,1826) | H111: number of days present in Reset RIN table
B112: MaxRows if ARR and leap year | C112: =IF(dms_LeapYear_Result="is a leap year",366,365) -> 365 | D112: dms_060701_ARR_MaxRows | E112: =IF(dms_LeapYear_Result="is a leap year",366,365) | H112: number of days present in ARR RIN table
B113: Table 6.7.1 - Max Rows (leap year/ non leap year) | C113: =IF(dms_Model="ARR",dms_060701_ARR_MaxRows,IF(dms_Model="Reset",dms_060701_Reset_MaxRows,"not a relevant RIN type")) -> not a relevant RIN type | D113: dms_060701_MaxRows | E113: =IF(dms_Model="ARR",dms_060701_ARR_MaxRows,IF(dms_Model="Reset",dms_060701_Reset_MaxRows,"not a relevant RIN type"))
B114: How many columns in 6.7? (4 or 5 feeder categories) | C114: =IF(dms_FifthFeeder_flag_NSP="NO","This NSP has only 4 feeder categories","This NSP has 5 feeder categories") -> This NSP has only 4 feeder categories
B115: Table 6.7.1 - Last column (# of feeder categories > 4) | C115: =IF(dms_FifthFeeder_flag_NSP="NO",10,12) -> 10 | D115: dms_060701_MaxCols | E115: =IF(dms_FifthFeeder_flag_NSP="NO",8,10)
B116: Table 6.7.1 - Number of offset rows | C116: =IF(dms_Model="ARR",15,9) -> 9 | D116: dms_060701_OffsetRows | E116: =IF(dms_Model="ARR",15,9)
B117: Start date for telephone answering in 6.1 or 6.7? | E117: Using 060101 as naming standard not 060701 for start dates
B118: Table 6.1.1 and 6.7.1 - Start Date as Text | C118: =IF(dms_SingleYearModel="yes",(CONCATENATE(IF(LEN(CRY)=4,"1-Jan-","1-Jul-"),LEFT(CRY,4))),(CONCATENATE(IF(LEN(PRCP_y4)=4,"1-Jan-","1-Jul-"),LEFT(PRCP_y4,4)))) -> 1-Jul-2008 | D118: dms_060101_StartDateTxt | E118: =IF(SUM(dms_SingleYear_Model)>1,(CONCATENATE(IF(LEN(CRY)=4,"1-Jan-","1-Jul-"),LEFT(CRY,4))),(CONCATENATE(IF(LEN(CRCP_y4)=4,"1-Jan-","1-Jul-"),LEFT(CRCP_y4,4))))
B119: Table 6.1.1 and 6.7.1 - Start Date as Date Value | C119: =DATEVALUE(dms_060701_StartDateTxt) -> 39630 | D119: dms_060101_StartDateVal | E119: =DATEVALUE(dms_060701_StartDateTxt)
B120: ARRs
B121: How many rows in table 6.8? | C121: insert dms_060801_StartCell NR if required | E121: dms_060801_StartCell is only found on worksheet 6.8 and is used to determine the starting date for the date range
B122: Is dms_060801_StartCell named range present? | C122: yes | E122: =IFERROR(IF((ROW(dms_060801_StartCell)-1)=1,"yes","yes"),"no")
B123: Table 6.8 - Number of offset rows | C123: 12 | D123: dms_0608_OffsetRows | E123: =IFERROR(IF(dms_Model="ARR",(ROW(dms_060801_StartCell)-1),"not an ARR"),"6.8 error")
B124: Table 6.8 - Last row | C124: 6.8 not present | D124: dms_0608_LastRow | E124: =IFERROR(IF(dms_060801_StartCell<>"",IF(dms_Model="ARR",(LOOKUP(2,1/(dms_060801_01_Values<>""),(ROW(dms_060801_01_Values)))),"not an ARR"),0),"6.8 not present")
B125: Table 6.8 - MaxRows | C125: =IFERROR(IF(dms_Model="ARR",(MAX(0,dms_0608_LastRow-dms_0608_OffsetRows)),"not an ARR"),"6.8 not present") -> not an ARR | D125: dms_060801_MaxRows | E125: =IFERROR(IF(dms_Model="ARR",(MAX(0,dms_0608_LastRow-dms_0608_OffsetRows)),"not an ARR"),"6.8 not present")
B126: TNSP RESET RINS
B127: Table 7.9.4 only appears in TNSPs Reset RIN
B128: Table 7.9.4 - first year | C128: =LEFT(PRCP_y3,4) -> 2000 | D128: dms_070904_Start_Year | E128: =LEFT(PRCP_y3,4)
B129: SUBSET FILES
B130: Is this Submission File a Subset File | C130: YES | D130: dms_Partial
B131: MISC
B132: Distribution Determination Reference | C132: =INDEX(dms_DeterminationRef_List,MATCH(dms_TradingName,dms_TradingName_List)) -> 2015-20 Distribution Determination | D132: dms_DeterminationRef
B133: Public lighting NSP? | C133: =INDEX(dms_Public_Lighting_List,MATCH(dms_TradingName,dms_TradingName_List)) -> YES | D133: dms_Public_Lighting | E133: =INDEX(dms_Public_Lighting_List,MATCH(dms_TradingName,dms_TradingName_List))
B134: CBD Feeder for this business | C134: =INDEX(dms_CBD_flag,MATCH(dms_TradingName,dms_TradingName_List)) -> YES | D134: dms_CBD_flag_NSP
B135: Urban Feeder for this business | C135: =INDEX(dms_Urban_flag,MATCH(dms_TradingName,dms_TradingName_List)) -> YES | D135: dms_Urban_flag_NSP
B136: Short rural Feeder for this business | C136: =INDEX(dms_ShortRural_flag,MATCH(dms_TradingName,dms_TradingName_List)) -> YES | D136: dms_ShortRural_flag_NSP
B137: Long rural Feeder for this business | C137: =INDEX(dms_LongRural_flag,MATCH(dms_TradingName,dms_TradingName_List)) -> NO | D137: dms_LongRural_flag_NSP
B138: Fifth Feeder Category (eg. TasNetworks (D)) | C138: =INDEX(dms_FeederType_5_flag,MATCH(dms_TradingName,dms_TradingName_List)) -> NO | D138: dms_FifthFeeder_flag_NSP | E138: =INDEX(dms_FeederType_5_flag,MATCH(dms_TradingName,dms_TradingName_List))
B140: DISCARD FILES
B141: discard this record? | C141: NO | D141: dms_DISCARD | E141: If record is to be discarded from DB set this flag to YES
B143: USES NAMED RANGES FLAG | C143: yes | D143: dms_Defined_Names_Used
B145: REGULATORY YEARS FOR MULTI RYE SUBMISSIONS
B146: Multiple RYE flag | C146: YES | D146: dms_Multi_RYE_flag
C147: Manually specify RYE | D147: Named ranges to apply
C148: 2013 | D148: dms_RYE_01
C149: 2014 | D149: dms_RYE_02
C150: 2015 | D150: dms_RYE_03
C151: 2016 | D151: dms_RYE_04
C152: 2017 | D152: dms_RYE_05
C153: 2018 | D153: dms_RYE_06
C154: 2019 | D154: dms_RYE_07
C155: 2020 | D155: dms_RYE_08
C156: 2021 | D156: dms_RYE_09

Sheet 2.1 Expenditure summary
B1: REGULATORY REPORTING STATEMENT
B2: =INDEX(dms_TradingNameFull_List,MATCH(dms_TradingName,dms_TradingName_List)) -> Energex
B3: =IF(SUM(dms_SingleYear_Model)>0,("CATEGORY ANALYSIS "&CRY&" to "&FRY),("CATEGORY ANALYSIS "&CRY)) -> CATEGORY ANALYSIS 2008-09 to 2017-18
B4: 2.1 EXPENDITURE SUMMARY & RECONCILIATION
B6: There are EIGHT tables on this worksheet - see the Instructions sheet on how to group or ungroup tables.
B8: 2.1.1 - STANDARD CONTROL SERVICES CAPEX
C9: EXPENDITURE ($0's)
C10: =IF(dms_RPT="financial",dms_CRYf_y1,dms_CRYc_y1) -> 2008-09 | D10: =IF(dms_RPT="financial",dms_CRYf_y2,dms_CRYc_y2) -> 2009-10 | E10: =IF(dms_RPT="financial",dms_CRYf_y3,dms_CRYc_y3) -> 2010-11 | F10: =IF(dms_RPT="financial",dms_CRYf_y4,dms_CRYc_y4) -> 2011-12 | G10: =IF(dms_RPT="financial",dms_CRYf_y5,dms_CRYc_y5) -> 2012-13 | H10: =IF(dms_RPT="financial",dms_CRYf_y6,dms_CRYc_y6) -> 2013-14 | I10: =IF(dms_RPT="financial",dms_CRYf_y7,dms_CRYc_y7) -> 2014-15 | J10: =IF(dms_RPT="financial",dms_CRYf_y8,dms_CRYc_y8) -> 2015-16 | K10: =IF(dms_RPT="financial",dms_CRYf_y9,dms_CRYc_y9) -> 2016-17 | L10: =IF(dms_RPT="financial",dms_CRYf_y10,dms_CRYc_y10) -> 2017-18
B11: Replacement expenditure | C11: 71060973.21 | D11: 98751363.4 | E11: 90719544.69 | F11: 124252821.1 | G11: 156797453.9 | H11: 161722424 | I11: 207984012.2 | J11: 185809462 | K11: 204807111.2 | L11: 162800527.8
B12: Connections | C12: 133280044.9 | D12: 102897662.7 | E12: 89340898.42 | F12: 72587164.63 | G12: 69565818.97 | H12: 63421157.59 | I12: 53714134.06 | J12: 52353764.18 | K12: 46467875.6 | L12: 38946860.57
B13: Augmentation Expenditure | C13: 299212492.5 | D13: 343685046.3 | E13: 338678641.6 | F13: 306070251.1 | G13: 261018418 | H13: 193266674.3 | I13: 125602702.2 | J13: 93524837.07 | K13: 55610358.31 | L13: 85890669.48
B14: Non-network | C14: 116942966.7 | D14: 234965435.8 | E14: 205750789.2 | F14: 225641810.3 | G14: 207018725.4 | H14: 130208078.1 | I14: 196427081.4 | J14: 122915983.3 | K14: 111660628.9 | L14: 110428577.4
B15: capitalised network overheads | C15: 53680244.89 | D15: 66500561.17 | E15: 71885772.05 | F15: 76204470.43 | G15: 64606591.28 | H15: 60608062.04 | I15: 60316148.1 | J15: 50495590.16 | K15: 49396725.07 | L15: 50367195.3
B16: capitalised corporate overheads | C16: 8074035.481 | D16: 8959453.198 | E16: 11146668.51 | F16: 11801564.04 | G16: 11872864.42 | H16: 11102120.66 | I16: 12018434.25 | J16: 9593158.395 | K16: 14347391.2 | L16: 14272709.77
B17: Metering | C17: 0 | D17: 0 | E17: 0 | F17: 0 | G17: 0 | H17: 0 | I17: 0 | J17: 0 | K17: 0 | L17: 0
B18: Public Lighting | C18: 0 | D18: 0 | E18: 0 | F18: 0 | G18: 0 | H18: 0 | I18: 0 | J18: 0 | K18: 0 | L18: 0
B25: balancing item
B26: capcons (included in the above items) | C26: 45734137.86 | D26: 55549293.22 | E26: 64267990.3 | F26: 61321976.81 | G26: 46991523.41 | H26: 35277971.61 | I26: 60550575.15 | J26: 79548878.06 | K26: 68929372.28 | L26: 56287342.04
B27: TOTAL GROSS CAPEX (includes capcons) | C27: =+SUM(C11:C25) -> 682250757.7 | D27: 855759522.6 | E27: 807522314.5 | F27: 816558081.5 | H27: 620328516.7 | I27: 656062512.1 | J27: 514692795.1
B29: 2.1.2 - STANDARD CONTROL SERVICES OPEX
C30: EXPENDITURE ($0's)
C31: =IF(dms_RPT="financial",dms_CRYf_y1,dms_CRYc_y1) -> 2008-09 | D31: =IF(dms_RPT="financial",dms_CRYf_y2,dms_CRYc_y2) -> 2009-10 | E31: =IF(dms_RPT="financial",dms_CRYf_y3,dms_CRYc_y3) -> 2010-11 | F31: =IF(dms_RPT="financial",dms_CRYf_y4,dms_CRYc_y4) -> 2011-12 | G31: =IF(dms_RPT="financial",dms_CRYf_y5,dms_CRYc_y5) -> 2012-13 | H31: =IF(dms_RPT="financial",dms_CRYf_y6,dms_CRYc_y6) -> 2013-14 | I31: =IF(dms_RPT="financial",dms_CRYf_y7,dms_CRYc_y7) -> 2014-15 | J31: =IF(dms_RPT="financial",dms_CRYf_y8,dms_CRYc_y8) -> 2015-16 | K31: =IF(dms_RPT="financial",dms_CRYf_y9,dms_CRYc_y9) -> 2016-17 | L31: =IF(dms_RPT="financial",dms_CRYf_y10,dms_CRYc_y10) -> 2017-18
B32: Vegetation management | C32: 44208712.72 | D32: 45237995.27 | E32: 50239662.74 | F32: 49582643.66 | G32: 50894171.79 | H32: 53842919.32 | I32: 45749550.88 | J32: 45360019.78 | K32: 44121196.29 | L32: 41689026.98
B33: Maintenance | C33: 52034065.26 | D33: 54995147.14 | E33: 51478317.56 | F33: 76379086.47 | G33: 55993352.64 | H33: 60394189 | I33: 61019721.37 | J33: 63374143.72 | K33: 60480498.08 | L33: 55468138.66
B34: Emergency response | C34: 37061437 | D34: 26886748 | E34: 53445643 | F34: 33077384.94 | G34: 44671400 | H34: 36947036 | I34: 39708183.72 | J34: 38441155.95 | K34: 44545931.23 | L34: 43818403.71
B35: Non-network | C35: 40004986.63 | D35: 41937154.81 | E35: 48242798.77 | F35: 52169116.48 | G35: 51879727.98 | H35: 49564727.62 | I35: 52152607.14 | J35: 48562256.67 | K35: 50207693.97 | L35: 53103664.24
B36: network overheads | C36: 75848838.21 | D36: 78881785.28 | E36: 85812984.9 | F36: 103316148.9 | G36: 103579657.2 | H36: 99668265.5 | I36: 303551893.5 | J36: 88745188.02 | K36: 78809343.18 | L36: 85758344.64
B37: corporate overheads | C37: 45915593.67 | D37: 49141385.14 | E37: 51816218.77 | F37: 56793191.97 | G37: 73463592.03 | H37: 60768744.28 | I37: 72129304.82 | J37: 57969053.85 | K37: 64998832.3 | L37: 69387293.8
B38: Metering | C38: 0 | D38: 0 | E38: 0 | F38: 0 | G38: 0 | H38: 0 | I38: 0 | J38: 0 | K38: 0 | L38: 0
B39: Public Lighting | D39: 0 | E39: 0 | F39: 0 | G39: 0 | H39: 0 | I39: 0 | J39: 0 | K39: 0 | L39: 0
B46: balancing tem
B47: TOTAL OPEX | C47: =+SUM(C32:C46) -> 295073633.5 | D47: 297080215.6 | E47: 341035625.7 | F47: 371317572.4 | H47: 361185881.7 | I47: 574311261.4 | J47: 342451818
B49: 2.1.3 - ALTERNATIVE CONTROL SERVICES CAPEX
C50: EXPENDITURE ($0's)
C51: =IF(dms_RPT="financial",dms_CRYf_y1,dms_CRYc_y1) -> 2008-09 | D51: =IF(dms_RPT="financial",dms_CRYf_y2,dms_CRYc_y2) -> 2009-10 | E51: =IF(dms_RPT="financial",dms_CRYf_y3,dms_CRYc_y3) -> 2010-11 | F51: =IF(dms_RPT="financial",dms_CRYf_y4,dms_CRYc_y4) -> 2011-12 | G51: =IF(dms_RPT="financial",dms_CRYf_y5,dms_CRYc_y5) -> 2012-13 | H51: =IF(dms_RPT="financial",dms_CRYf_y6,dms_CRYc_y6) -> 2013-14 | I51: =IF(dms_RPT="financial",dms_CRYf_y7,dms_CRYc_y7) -> 2014-15 | J51: =IF(dms_RPT="financial",dms_CRYf_y8,dms_CRYc_y8) -> 2015-16 | K51: =IF(dms_RPT="financial",dms_CRYf_y9,dms_CRYc_y9) -> 2016-17 | L51: =IF(dms_RPT="financial",dms_CRYf_y10,dms_CRYc_y10) -> 2017-18
B52: Connections | C52: 0 | D52: 0 | E52: 695173.6608 | F52: 5682519.992 | G52: 6372086.112 | H52: 3080054.302 | I52: 9959160.813 | J52: 4617630.142 | K52: 397157.9082 | L52: 861661.177
B53: capitalised network overheads | C53: 8378507.262 | D53: 4980679.951 | E53: 4744105.342 | F53: 6830740.992 | G53: 5556787.62 | H53: 5196887.613 | I53: 1348328.171 | J53: 4500529.41 | K53: 4440987.953 | L53: 3264331.331
B54: capitalised corporate overheads | C54: 609614.3126 | D54: 643430.6037 | E54: 741175.475 | F54: 1045251.925 | G54: 1052450.322 | H54: 969711.8229 | I54: 269148.2701 | J54: 855011.1277 | K54: 1289895.056 | L54: 906180.8086
B55: Metering | C55: 19290612.07 | D55: 19187314.02 | E55: 26109896.26 | F55: 26553625.97 | G55: 24184864.91 | H55: 20721558.26 | I55: 11664959.03 | J55: 13061448.07 | K55: 11166771.53 | L55: 5594374.783
B56: Public lighting | C56: 5262496.27 | D56: 5690485.791 | E56: 4324352.357 | F56: 4462244.504 | G56: 4665540.352 | H56: 3613289.563 | I56: 4992236.053 | J56: 5832304.274 | K56: 4506901.97 | L56: 4038254.224
B57: Fee and quoted | C57: 0 | D57: 0 | E57: 863139.57 | F57: 6644164.98 | G57: 9496200 | H57: 6726690 | I57: 12939287.99 | J57: 7494264.66 | K57: 9110787.62 | L57: 7672959.76
B65: TOTAL CAPEX | C65: =+SUM(C52:C64) -> 33541229.92 | D65: 30501910.37 | E65: 37477842.67 | F65: 51218548.36 | H65: 40308191.56 | I65: 41173120.33 | J65: 36361187.68
B67: 2.1.4 - ALTERNATIVE CONTROL SERVICES OPEX
C68: EXPENDITURE ($0's)
C69: =IF(dms_RPT="financial",dms_CRYf_y1,dms_CRYc_y1) -> 2008-09 | D69: =IF(dms_RPT="financial",dms_CRYf_y2,dms_CRYc_y2) -> 2009-10 | E69: =IF(dms_RPT="financial",dms_CRYf_y3,dms_CRYc_y3) -> 2010-11 | F69: =IF(dms_RPT="financial",dms_CRYf_y4,dms_CRYc_y4) -> 2011-12 | G69: =IF(dms_RPT="financial",dms_CRYf_y5,dms_CRYc_y5) -> 2012-13 | H69: =IF(dms_RPT="financial",dms_CRYf_y6,dms_CRYc_y6) -> 2013-14 | I69: =IF(dms_RPT="financial",dms_CRYf_y7,dms_CRYc_y7) -> 2014-15 | J69: =IF(dms_RPT="financial",dms_CRYf_y8,dms_CRYc_y8) -> 2015-16 | K69: =IF(dms_RPT="financial",dms_CRYf_y9,dms_CRYc_y9) -> 2016-17 | L69: =IF(dms_RPT="financial",dms_CRYf_y10,dms_CRYc_y10) -> 2017-18
B70: Connections | C70: 0 | D70: 0 | E70: 0 | F70: 0 | G70: 0 | H70: 0 | I70: 0 | J70: 17204576.68 | K70: 22840321.12 | L70: 23404914.83
B71: network overheads | C71: 15729499.77 | D71: 33063938.47 | E71: 25160856.64 | F71: 26557717.83 | G71: 23340904.42 | H71: 26886473.77 | I71: 7514343.291 | J71: 22712141.32 | K71: 25072611.04 | L71: 28348933.27
B72: corporate overheads | C72: 10059076.5 | D72: 13489593.36 | E72: 11441316.24 | F72: 12766315.69 | G72: 14055041.5 | H72: 13476886.54 | I72: 5690952.783 | J72: 14128421.19 | K72: 17824868.08 | L72: 18356928.98
B73: Metering | C73: 8757896.561 | D73: 10238412.82 | E73: 9127081.692 | F73: 10126868.21 | G73: 10152540.89 | H73: 10160210.65 | I73: 9782092.664 | J73: 12750724.87 | K73: 13020264.32 | L73: 13339000.58
B74: Public lighting | C74: 7990045.324 | D74: 7054947.924 | E74: 8349809.375 | F74: 7917227.789 | G74: 8734431.577 | H74: 7719876.922 | I74: 8757478.694 | J74: 10564271.15 | K74: 10762858.09 | L74: 10824399.39
B75: Fee and quoted | C75: 8352077.628 | D75: 9019595.911 | E75: 16061131.71 | F75: 16619348.09 | G75: 13846019.31 | H75: 20919516.5 | I75: 27241387.97 | J75: 31364888.44 | K75: 31693245.62 | L75: 14381325.46
B83: TOTAL OPEX | C83: =+SUM(C70:C82) -> 50888595.78 | D83: 72866488.49 | E83: 70140195.66 | F83: 73987477.61 | H83: 79162964.39 | I83: 58986255.41 | J83: 108725023.6
B85: 2.1.5 - DUAL FUNCTION ASSETS CAPEX
C86: EXPENDITURE ($0's)
C87: =IF(dms_RPT="financial",dms_CRYf_y1,dms_CRYc_y1) -> 2008-09 | D87: =IF(dms_RPT="financial",dms_CRYf_y2,dms_CRYc_y2) -> 2009-10 | E87: =IF(dms_RPT="financial",dms_CRYf_y3,dms_CRYc_y3) -> 2010-11 | F87: =IF(dms_RPT="financial",dms_CRYf_y4,dms_CRYc_y4) -> 2011-12 | G87: =IF(dms_RPT="financial",dms_CRYf_y5,dms_CRYc_y5) -> 2012-13 | H87: =IF(dms_RPT="financial",dms_CRYf_y6,dms_CRYc_y6) -> 2013-14 | I87: =IF(dms_RPT="financial",dms_CRYf_y7,dms_CRYc_y7) -> 2014-15 | J87: =IF(dms_RPT="financial",dms_CRYf_y8,dms_CRYc_y8) -> 2015-16 | K87: =IF(dms_RPT="financial",dms_CRYf_y9,dms_CRYc_y9) -> 2016-17 | L87: =IF(dms_RPT="financial",dms_CRYf_y10,dms_CRYc_y10) -> 2017-18
B88: Replacement expenditure
B89: Connections
B90: Augmentation Expenditure
B91: Non-network
B92: Capitalised network overheads
B93: Capitalised corporate overheads
B101: capcons (included in the above items)
B102: TOTAL GROSS CAPEX (includes capcons) | C102: =SUM(C88:C100) -> 0 | D102: 0 | E102: 0 | F102: 0 | H102: 0 | I102: 0 | J102: 0
B104: 2.1.6 - DUAL FUNCTION ASSETS OPEX
C105: EXPENDITURE ($0's)
C106: =IF(dms_RPT="financial",dms_CRYf_y1,dms_CRYc_y1) -> 2008-09 | D106: =IF(dms_RPT="financial",dms_CRYf_y2,dms_CRYc_y2) -> 2009-10 | E106: =IF(dms_RPT="financial",dms_CRYf_y3,dms_CRYc_y3) -> 2010-11 | F106: =IF(dms_RPT="financial",dms_CRYf_y4,dms_CRYc_y4) -> 2011-12 | G106: =IF(dms_RPT="financial",dms_CRYf_y5,dms_CRYc_y5) -> 2012-13 | H106: =IF(dms_RPT="financial",dms_CRYf_y6,dms_CRYc_y6) -> 2013-14 | I106: =IF(dms_RPT="financial",dms_CRYf_y7,dms_CRYc_y7) -> 2014-15 | J106: =IF(dms_RPT="financial",dms_CRYf_y8,dms_CRYc_y8) -> 2015-16 | K106: =IF(dms_RPT="financial",dms_CRYf_y9,dms_CRYc_y9) -> 2016-17 | L106: =IF(dms_RPT="financial",dms_CRYf_y10,dms_CRYc_y10) -> 2017-18
B107: Vegetation management
B108: Maintenance
B109: Emergency response
B110: Non-network
B111: network overheads
B112: corporate overheads
B113: Metering
B120: TOTAL OPEX | C120: =SUM(C107:C119) -> 0 | D120: 0 | E120: 0 | F120: 0 | H120: 0 | I120: 0 | J120: 0
B122: 2.1.7 - STANDARD CONTROL SERVICES CAPCONS
C123: EXPENDITURE ($0's)
C124: =IF(dms_RPT="financial",dms_CRYf_y1,dms_CRYc_y1) -> 2008-09 | D124: =IF(dms_RPT="financial",dms_CRYf_y2,dms_CRYc_y2) -> 2009-10 | E124: =IF(dms_RPT="financial",dms_CRYf_y3,dms_CRYc_y3) -> 2010-11 | F124: =IF(dms_RPT="financial",dms_CRYf_y4,dms_CRYc_y4) -> 2011-12 | G124: =IF(dms_RPT="financial",dms_CRYf_y5,dms_CRYc_y5) -> 2012-13 | H124: =IF(dms_RPT="financial",dms_CRYf_y6,dms_CRYc_y6) -> 2013-14 | I124: =IF(dms_RPT="financial",dms_CRYf_y7,dms_CRYc_y7) -> 2014-15 | J124: =IF(dms_RPT="financial",dms_CRYf_y8,dms_CRYc_y8) -> 2015-16 | K124: =IF(dms_RPT="financial",dms_CRYf_y9,dms_CRYc_y9) -> 2016-17 | L124: =IF(dms_RPT="financial",dms_CRYf_y10,dms_CRYc_y10) -> 2017-18
B125: Replacement expenditure
B126: Connections | C126: 45734137.86 | D126: 55549293.22 | E126: 64267990.3 | F126: 61321976.81 | G126: 46991523.41 | H126: 35277971.61 | I126: 60550575.15 | J126: 79548878.06 | K126: 68929372.28 | L126: 56287342.04
B127: Augmentation Expenditure
B128: Non-network
B129: capitalised network overheads
B130: capitalised corporate overheads
B131: Metering
B132: Public Lighting
B140: TOTAL CAPCONS | C140: =+SUM(C125:C139) -> 45734137.86 | D140: 55549293.22 | E140: 64267990.3 | F140: 61321976.81 | H140: 35277971.61 | I140: 60550575.15 | J140: 79548878.06
B142: 2.1.8 - STANDARD CONTROL SERVICES CAPITALISED OVERHEADS
C143: EXPENDITURE ($0's)
C144: =IF(dms_RPT="financial",dms_CRYf_y1,dms_CRYc_y1) -> 2008-09 | D144: =IF(dms_RPT="financial",dms_CRYf_y2,dms_CRYc_y2) -> 2009-10 | E144: =IF(dms_RPT="financial",dms_CRYf_y3,dms_CRYc_y3) -> 2010-11 | F144: =IF(dms_RPT="financial",dms_CRYf_y4,dms_CRYc_y4) -> 2011-12 | G144: =IF(dms_RPT="financial",dms_CRYf_y5,dms_CRYc_y5) -> 2012-13 | H144: =IF(dms_RPT="financial",dms_CRYf_y6,dms_CRYc_y6) -> 2013-14 | I144: =IF(dms_RPT="financial",dms_CRYf_y7,dms_CRYc_y7) -> 2014-15 | J144: =IF(dms_RPT="financial",dms_CRYf_y8,dms_CRYc_y8) -> 2015-16 | K144: =IF(dms_RPT="financial",dms_CRYf_y9,dms_CRYc_y9) -> 2016-17 | L144: =IF(dms_RPT="financial",dms_CRYf_y10,dms_CRYc_y10) -> 2017-18
B145: Vegetation management
B146: Maintenance
B147: Emergency response
B148: Non-network | C148: 5611357.946 | D148: 11930494.05 | E148: 11831594.69 | F148: 12434747.83 | G148: 10238599.22 | H148: 7502295.786 | I148: 12173285.26 | J148: 6979184.423 | K148: 8754928.156 | L148: 7813748.282
B149: Metering
B150: Public Lighting
B151: Replacement expenditure | C151: 7468254.452 | D151: 10859094.69 | E151: 11744440.75 | F151: 17693708.62 | G151: 20305644.59 | H151: 23765677.9 | I151: 31278846.2 | J151: 28866353.89 | K151: 35724033.02 | L151: 31106381.63
B152: Connections | C152: 14790866.8 | D152: 11948037.31 | E152: 12212999.37 | F152: 10914729.72 | G152: 9512928.15 | H152: 9841349.816 | I152: 8530016.9 | J152: 8588405.835 | K152: 8884805.438 | L152: 8157288.021
B153: Augmentation Expenditure | C153: 33883810.94 | D153: 40722400.25 | E153: 47243418.88 | F153: 46962862.22 | G153: 36422295.83 | H153: 30600870.53 | I153: 20352445.43 | J153: 15654813.91 | K153: 10380678.08 | L153: 17562820.19
B157: capcons (included in the above items)
B158: TOTAL CAPITALISED OVERHEADS | C158: =+SUM(C145:C156) -> 61754290.13 | D158: =+SUM(D145:D156) -> 75460026.3 | E158: 83032453.69 | F158: 88006048.38 | H158: 71710194.03 | I158: 72334593.79 | J158: 60088758.06

Sheet 2.12 Input tables
B1: REGULATORY REPORTING STATEMENT
B2: =INDEX(dms_TradingNameFull_List,MATCH(dms_TradingName,dms_TradingName_List)) -> Energex
B3: =IF(SUM(dms_SingleYear_Model)>0,("CATEGORY ANALYSIS "&CRY&" to "&FRY),("CATEGORY ANALYSIS "&CRY)) -> CATEGORY ANALYSIS 2008-09 to 2017-18
B4: 2.12 INPUT TABLES
B6: There are SIX tables on this worksheet. Each table has been 'grouped' for easy navigation. See the Instructions sheet on how to group or ungroup data.
B8: 2.12 INPUT TABLES
B9: 2.12.1 - DIRECT MATERIALS EXPENDITURE
D10: EXPENDITURE
D11: Actual ($0's)
D12: =IF(dms_RPT="financial",dms_CRYf_y1,dms_CRYc_y1) -> 2008-09 | E12: =IF(dms_RPT="financial",dms_CRYf_y2,dms_CRYc_y2) -> 2009-10 | F12: =IF(dms_RPT="financial",dms_CRYf_y3,dms_CRYc_y3) -> 2010-11 | G12: =IF(dms_RPT="financial",dms_CRYf_y4,dms_CRYc_y4) -> 2011-12 | H12: =IF(dms_RPT="financial",dms_CRYf_y5,dms_CRYc_y5) -> 2012-13 | I12: =IF(dms_RPT="financial",dms_CRYf_y6,dms_CRYc_y6) -> 2013-14 | J12: =IF(dms_RPT="financial",dms_CRYf_y7,dms_CRYc_y7) -> 2014-15 | K12: =IF(dms_RPT="financial",dms_CRYf_y8,dms_CRYc_y8) -> 2015-16 | L12: =IF(dms_RPT="financial",dms_CRYf_y9,dms_CRYc_y9) -> 2016-17 | M12: =IF(dms_RPT="financial",dms_CRYf_y10,dms_CRYc_y10) -> 2017-18
B13: VEGETATION MANAGEMENT | C13: Zone 1 | D13: 2368.988345 | E13: 2393.097722 | F13: 2477.330353 | G13: -3903.204618 | H13: 20452.54881 | I13: 2295.04 | J13: 2971 | K13: 3404.49 | L13: 5761.61 | M13: 8236.92
C14: Zone 2 | D14: 2322.631462 | E14: 507.9332802 | F14: 539.5161564 | G14: 814.0058683 | H14: 13459.39549 | I14: 0 | J14: 0 | K14: 0 | L14: 0 | M14: 0
C15: Zone 3 | D15: 561.3801927 | E15: 156.9689974 | F15: 153.6234908 | G15: 216.19875 | H15: 3457.055696 | I15: 0 | M15: 0
C16: Zone 4
C17: Zone 5
C18: Zone 6
C19: Zone 7
C20: Zone 8
C21: Zone 9
C22: Zone 10
C23: Zone 11
C24: Zone 12
C25: Zone 13
C26: Zone 14
C27: Zone 15
C28: Zone 16
C29: Zone 17
C30: Zone 18
B31: ROUTINE MAINTENANCE | C31: Pole top, overhead line & service line maintenance | D31: 275 | E31: 1058.3 | F31: 2967.68 | G31: 374.63 | H31: 664.72 | I31: 31863.65 | J31: 2941.97 | K31: 4197.28 | L31: -1119.02 | M31: 397.23
C32: Pole inspection and treatment | D32: 625628.95 | E32: 543150.35 | F32: 559320.19 | G32: 564872.69 | H32: 647828.86 | I32: 607021.2 | J32: 550421.15 | K32: 363806.57 | L32: 146601.54 | M32: 143479.66
C33: Overhead asset inspection | D33: 21163.18 | E33: 6584.44 | F33: 26091.6 | G33: 17568.3 | H33: 13629.42 | I33: 56660.85 | J33: 13881.71 | K33: 16553.02 | L33: 5068.4 | M33: 2947.14
C34: Network underground cable maintenance | D34: 84.42 | E34: 0 | F34: 11166.19 | G34: 23235.18 | H34: 7556.33 | I34: 6908.18 | J34: 13352.56 | K34: 8041.61 | L34: 11507.45 | M34: 0
C35: Distribution substation equipment & property maintenance | D35: 687956.18 | E35: 589874.19 | F35: -200525.58 | G35: 120467.84 | H35: 103919.17 | I35: 490768.94 | J35: 23849.42 | K35: 456069.47 | L35: 1283192.14 | M35: 2005613.01
C36: Zone substation equipment maintenance | D36: 722873.09 | E36: 386701.65 | F36: 250330.75 | G36: 249359.65 | H36: 216467.87 | I36: 315291.82 | J36: 325410.71 | K36: 369609.21 | L36: 243866.87 | M36: 207232.54
C37: Zone substation property maintenance | D37: 161.88 | E37: 814.45 | F37: 31.51 | G37: 0 | H37: 82.65 | I37: 1125 | J37: 18.14 | K37: 186.49 | L37: 10.51 | M37: 1158.45
C38: Public lighting maintenance | D38: 0 | E38: 0 | F38: 0 | G38: 0 | H38: 0 | I38: 0 | J38: 0 | M38: 0
C39: Scada & network control maintenance | D39: 0 | E39: 55.29 | F39: 3220.61 | G39: 1472.52 | H39: 17694.68 | I39: 40565.57 | J39: -35435.98 | K39: 4649.24 | L39: 1230.21 | M39: 13168.45
C40: Protection systems maintenance | D40: 153942.43 | E40: 9265.1 | F40: 4957.97 | G40: -2560.11 | H40: 1685.03 | I40: 320.93 | J40: 18968.03 | K40: 1785.75 | L40: 3814.48 | M40: -68.85
C41: Subtransmission asset maintenance - for dnsps with dual function assets | D41: 0 | E41: 0 | F41: 0 | G41: 0 | H41: 0 | I41: 0 | J41: 0 | M41: 0
C42: Other | D42: 57401.07 | E42: 25827.68 | F42: 69428.39 | G42: 43233.14 | H42: 108872.46 | I42: 83023 | J42: 57007.01 | K42: 125059.46 | L42: 76729.88 | M42: 101589.86
B43: NON-ROUTINE MAINTENANCE | C43: Pole top, overhead line & service line maintenance | D43: 3654542.99 | E43: 3345780.24 | F43: 2108539.48 | G43: 3172242.4 | H43: 3163457.67 | I43: 3007447.87 | J43: 1607098.96 | K43: 1801866.71 | L43: 1432318.23 | M43: 1098204.92
C44: Pole inspection and treatment | D44: 1188.86 | E44: 66.32 | F44: 183.3 | G44: -1265.8 | H44: 4614.22 | I44: 1450.77 | J44: 0 | K44: 2410.93 | M44: 0
C45: Overhead asset inspection | D45: 6027.24 | E45: 63.65 | F45: 168.43 | G45: 1043.27 | H45: 972.72 | I45: 3249.82 | J45: 3257.69 | K45: 14580.75 | L45: 2343.62 | M45: 244.01
C46: Network underground cable maintenance | D46: 586452.71 | E46: 869085.83 | F46: 993808.63 | G46: 539331.86 | H46: 603033.42 | I46: 436089.31 | J46: 641321.43 | K46: 738494.37 | L46: 355815.36 | M46: 432402.92
C47: Distribution substation equipment & property maintenance | D47: 66103.64 | E47: 9762.77 | F47: 7020.54 | G47: 197706.64 | H47: 1277695.75 | I47: 272363 | J47: 294593.22 | K47: -168426.42 | L47: 60319.18 | M47: 172207.54
C48: Zone substation equipment maintenance | D48: 350263 | E48: 1447198.14 | F48: 687731.7 | G48: 1079813.39 | H48: 1198119.56 | I48: 563346.8 | J48: 664308.98 | K48: 1217489.82 | L48: 1383486.72 | M48: 1021704.07
C49: Zone substation property maintenance | D49: 189355.22 | E49: 190891.44 | F49: 199242.44 | G49: 190412 | H49: 296884.81 | I49: 128044.99 | J49: 159196.11 | K49: 192707.02 | L49: 78673.42 | M49: 110241.8
C50: Public lighting maintenance | D50: 2841146.07 | E50: 1961955.38 | F50: 1231.55 | G50: 3453.09 | H50: 1070.83 | I50: 0 | J50: 0 | M50: 0
C51: SCADA & network control maintenance | D51: 0 | E51: 0 | F51: 0 | G51: 0 | H51: 0 | I51: 377 | J51: 0 | K51: 729.56 | M51: 0
C52: Protection systems maintenance | D52: 0 | E52: 79143.79 | F52: -76342.32 | G52: -5949.25 | H52: 23213.58 | I52: 15186.16 | J52: 92789.56 | K52: 4411.35 | L52: -46473.07 | M52: 9578.48
C53: Subtransmission asset maintenance - for DNSP with dual function assets | D53: 0 | E53: 0 | F53: 0 | G53: 0 | H53: 0 | I53: 0 | J53: 0 | M53: 0
C54: Other | D54: 349737.16 | E54: 218083.12 | F54: 181033.24 | G54: 114457.05 | H54: 335762.03 | I54: 244435 | J54: 237035.68 | K54: 596423.81 | L54: 379302.69 | M54: 177339.16
B55: OVERHEADS | C55: Network overheads | D55: 7500286.234 | E55: 6816293.377 | F55: 6748382.267 | G55: 7030668.282 | H55: 7407103.79 | I55: 6967484.954 | J55: 180154329.7 | K55: 11580964.09 | L55: 12356127.3 | M55: 12301530.97
C56: Corporate overheads | D56: 418028.3997 | E56: 74598.02662 | F56: 55860.78192 | G56: 51324.16004 | H56: 28110.78217 | I56: 63012.14019 | J56: 285191.737 | K56: 255125.2734 | L56: 167378.0318 | M56: 695164.1001
B57: AUGMENTATION | C57: Subtransmission substations, switching stations, zone substations | D57: 55350235.84 | E57: 81382242.98 | F57: 61147812.06 | G57: 53256693.68 | H57: 52900518.51 | I57: 44241545.08 | J57: 16152674.36 | K57: 2489456.449 | L57: 516267.958 | M57: 2155938.823
C58: Subtransmission lines | D58: 18443098.31 | E58: 15530406.21 | F58: 20689780.82 | G58: 8491243.665 | H58: 8563561.777 | I58: 4407684.195 | J58: 7895534.106 | K58: 4508262.039 | L58: -21679.50274 | M58: 553638.7193
C59: HV feeders | D59: 29025103.01 | E59: 29024394.81 | F59: 28949333.56 | G59: 25849349.69 | H59: 21646950.81 | I59: 9716755.583 | J59: 9206903.541 | K59: 3741267.072 | L59: 3108069.697 | M59: 8658137.192
C60: Distribution substations | D60: 26591202.36 | E60: 24954424.93 | F60: 6945955 | G60: 5106692.131 | H60: 4491212.402 | I60: 5486171.172 | J60: 2529875.873 | K60: 761784.5959 | L60: 1225904.922 | M60: 4687118.741
C61: LV feeders | D61: 755627.7188 | E61: 704527.0453 | F61: 656080.9735 | G61: 1819734.149 | H61: 2245166.909 | I61: 1419359.643 | J61: 4814353.703 | K61: 717503.9138 | L61: 759054.8318 | M61: 2922997.188
C62: Other assets | D62: 17026846.46 | E62: 22360306.46 | F62: 15678368.49 | G62: 18326259.34 | H62: 4625512.493 | I62: -11929.61933 | J62: 2609491.527 | K62: 11828711.29 | L62: 8646497.865 | M62: 5668939.147
B63: CONNECTIONS | C63: Simple and complex customer connections | D63: 73815575.77 | E63: 51991778.76 | F63: 37340910.57 | G63: 27399411.35 | H63: 26560723.83 | I63: 21469093.23 | J63: 26418688.28 | K63: 21921611.54 | L63: 19678296.45 | M63: 15271614.59
B64: EMERGENCY RESPONSE | C64: Major storms | D64: 284743 | E64: 13433 | F64: 2721019 | G64: 0 | H64: 1145211 | I64: 174029 | J64: 415606.76 | K64: 184361.41 | L64: 324239.44 | M64: 236215.19
C65: Major event days | D65: 32468 | E65: 1095 | F65: 1046501 | G65: 0 | H65: 240537 | I65: 13975 | J65: 310272.02 | K65: 96413.22 | L65: 269573.89 | M65: 53541.21
B66: PUBLIC LIGHTING | C66: All public lighting services | D66: 4153422.842 | E66: 3513039.905 | F66: 3320109.005 | G66: 2783175.117 | H66: 3378058.8 | I66: 2095944.66 | J66: 2949640.163 | K66: 3418653.062 | L66: 3332032.155 | M66: 3600295.509
B67: METERING | C67: All metering services | D67: 13725958.34 | E67: 12821082.7 | F67: 18174532.44 | G67: 17810676.28 | H67: 15862976.34 | I67: 13623356.02 | J67: 9657124.626 | K67: 13382154.83 | L67: 7509494.87 | M67: 3544979.675
B68: FEE-BASED SERVICES | C68: All fee-based services | D68: 220216.7024 | E68: 211813.5834 | F68: 185025.2504 | G68: 177324.2267 | H68: 164858.6711 | I68: 187567.3784 | J68: 34141.31 | K68: 455876.8 | L68: 357890.21 | M68: 296887.38
B69: QUOTED SERVICES | C69: All quoted services | D69: 9869140.383 | E69: 8986494.069 | F69: 6127893.163 | G69: 7911309.5 | H69: 8766880.093 | I69: 8892047.994 | J69: 4585599.63 | K69: 4589529.96 | L69: 6843311.03 | M69: 5694895.44
B70: REPLACEMENT | C70: Poles | D70: 3814789.456 | E70: 4748090.891 | F70: 4074057.978 | G70: 4472551.181 | H70: 5161235.015 | I70: 5089092.773 | J70: 5108726.42 | K70: 5947795.461 | L70: 6605955.51 | M70: 4172354.702
C71: Pole top structures | D71: 1432973.745 | E71: 2232207.38 | F71: 1916257.498 | G71: 2511976.091 | H71: 3275271.411 | I71: 3070357.099 | J71: 3390879.32 | K71: 3487635.176 | L71: 3731121.454 | M71: 2017174.558
C72: Overhead conductors | D72: 1768942.457 | E72: 3045175.162 | F72: 2506813.619 | G72: 3151578.362 | H72: 3871166.685 | I72: 8411903.672 | J72: 3469629.56 | K72: 2921762.997 | L72: 3341154.287 | M72: 1696415.491
C73: Underground cables | D73: 3914859.272 | E73: 8493718.511 | F73: 5049998.428 | G73: 5414642.813 | H73: 6272002.452 | I73: 1519744.229 | J73: 5667145.54 | K73: 3219205.67 | L73: 2151003.687 | M73: 1564631.298
C74: Service lines | D74: 0 | E74: 0 | F74: 0 | G74: 0 | H74: 0 | I74: 0 | J74: 4080157.1 | K74: 3414363.713 | L74: 3044271.436 | M74: 2632852.399
C75: Transformers | D75: 8313737.146 | E75: 6355892.452 | F75: 4958836.453 | G75: 8288725.8 | H75: 12433808.34 | I75: 12489820.56 | J75: 10505635.1 | K75: 10361961.69 | L75: 19099924.55 | M75: 10732045.71
C76: Switchgear | D76: 6270939.105 | E76: 7941320.522 | F76: 6314561.373 | G76: 8157696.119 | H76: 15136335.75 | I76: 14217165.99 | J76: 14241321.94 | K76: 9990520.867 | L76: 12145980.38 | M76: 11834435.97
C77: Public lighting | D77: 286231.4018 | E77: 350051.31 | F77: 389395.3006 | G77: 549063.1196 | H77: 581744.1043 | I77: 345517.6108 | J77: 669982.33 | K77: 879203.0058 | L77: 941034.6878 | M77: 580392.3925
C78: SCADA network control and protection systems | D78: 1632298.106 | E78: 1998889.822 | F78: 585298.9001 | G78: 589113.9842 | H78: 870582.3224 | I78: 2048832.088 | J78: 8304859.72 | K78: 6714599.907 | L78: 4716632.348 | M78: 4949141.699
C79: Other | D79: 0 | E79: 0 | F79: 0 | G79: 0 | H79: 0 | I79: 1463498.437 | J79: 2649785.63 | K79: 1469354.012 | L79: 1780184.846 | M79: 1420024.793
B80: NON-NETWORK EXPENDITURE | C80: IT and communications | D80: 2351075.126 | E80: 3050431.188 | F80: 3428797.882 | G80: 5073081.538 | H80: 4682759.636 | I80: 3133592.066 | J80: 3557115.763 | K80: 3323339.127 | L80: 2948102.298 | M80: 3664291.782
C81: Motor vehicles | D81: 8057969.778 | E81: 7157438.625 | F81: 10106481.76 | G81: 7523741.013 | H81: 7751459.105 | I81: 8443190.917 | J81: 9295754.779 | K81: 6735586.783 | L81: 9823536.705 | M81: 6563129.684
C82: Buildings and property | D82: 4025137.269 | E82: 21969129.21 | F82: 3437362.361 | G82: 6929718.517 | H82: 12795784.7 | I82: 2305537.842 | J82: 198036.0785 | K82: 1741178.719 | L82: 59940.60595 | M82: 1554390.792
C83: Other | D83: 11761263.53 | E83: 19568800.65 | F83: 16627138.72 | G83: 12247207.43 | H83: 9875501.971 | I83: 7717109.585 | J83: 14196360.75 | K83: 8701970.129 | L83: 6270550.337 | M83: 6566464.994
B86: 2.12.2 - DIRECT LABOUR EXPENDITURE
D87: EXPENDITURE
D88: Actual ($0's)
D89: =IF(dms_RPT="financial",dms_CRYf_y1,dms_CRYc_y1) -> 2008-09 | E89: =IF(dms_RPT="financial",dms_CRYf_y2,dms_CRYc_y2) -> 2009-10 | F89: =IF(dms_RPT="financial",dms_CRYf_y3,dms_CRYc_y3) -> 2010-11 | G89: =IF(dms_RPT="financial",dms_CRYf_y4,dms_CRYc_y4) -> 2011-12 | H89: =IF(dms_RPT="financial",dms_CRYf_y5,dms_CRYc_y5) -> 2012-13 | I89: =IF(dms_RPT="financial",dms_CRYf_y6,dms_CRYc_y6) -> 2013-14 | J89: =IF(dms_RPT="financial",dms_CRYf_y7,dms_CRYc_y7) -> 2014-15 | K89: =IF(dms_RPT="financial",dms_CRYf_y8,dms_CRYc_y8) -> 2015-16 | L89: =IF(dms_RPT="financial",dms_CRYf_y9,dms_CRYc_y9) -> 2016-17 | M89: =IF(dms_RPT="financial",dms_CRYf_y10,dms_CRYc_y10) -> 2017-18
B90: VEGETATION MANAGEMENT | C90: =IF(ISBLANK(C13)," ",C13) -> Zone 1 | D90: 1236469.304 | E90: 1123214.762 | F90: 1165896.478 | G90: 192257.0795 | H90: 123781.7623 | I90: 124225.4 | J90: 89728.4 | K90: 99341.56 | L90: 101381.46 | M90: 90321.44
C91: =IF(ISBLANK(C14)," ",C14) -> Zone 2 | D91: 261689.5467 | E91: 221469.1718 | F91: 360521.1602 | G91: 39052.9183 | H91: 22679.80388 | I91: 0 | J91: 0 | K91: 0 | L91: 0 | M91: 0
C92: Zone 3 | D92: 87520.14962 | E92: 75534.72587 | F92: 103714.362 | G92: 11961.00218 | H92: 9470.43384 | I92: 0 | M92: 0
C93: Zone 4
C94: Zone 5
C95: Zone 6
C96: Zone 7
C97: Zone 8
C98: Zone 9
C99: Zone 10
C100: Zone 11
C101: Zone 12
C102: Zone 13
C103: Zone 14
C104: Zone 15
C105: Zone 16
C106: Zone 17
C107: Zone 18
B108: ROUTINE MAINTENANCE | C108: Pole top, overhead line & service line maintenance | D108: 36968.64 | E108: 28974.67 | F108: 123927.48 | G108: 136267.89 | H108: 183805.87 | I108: 403085.35 | J108: 284671.26 | K108: 152118.23 | L108: 258894.54 | M108: 90977.33
C109: Pole inspection and treatment | D109: 1152022.18 | E109: 1083510.53 | F109: 1041300.94 | G109: 216775.53 | H109: 73404.22 | I109: 28307.6 | J109: 36767.12 | K109: 77239.56 | L109: 10335.83 | M109: 1359.32
C110: Overhead asset inspection | D110: 548622.09 | E110: 444090.71 | F110: 455471.13 | G110: 462807.3 | H110: 416347.07 | I110: 855263.26 | J110: 1221549.51 | K110: 1326683.81 | L110: 961857.32 | M110: 644948.58
C111: Network underground cable maintenance | D111: 1298.06 | E111: 0 | F111: 128770.11 | G111: 430816.84 | H111: 240170.79 | I111: 236824.08 | J111: 256184.7 | K111: 200516.72 | L111: 128536.35 | M111: 8452.16
C112: Distribution substation equipment & property maintenance | D112: 1356881.62 | E112: 1508883.11 | F112: 1747709.37 | G112: 1273575.91 | H112: 939528.25 | I112: 1205027.54 | J112: 244996.17 | K112: 1073239.29 | L112: 2116121.55 | M112: 3144506.97
C113: Zone substation equipment maintenance | D113: 2407396.72 | E113: 519725.18 | F113: 783192.15 | G113: 911635.83 | H113: 947306.99 | I113: 1498255.2 | J113: 1553449.36 | K113: 1602873.1 | L113: 1430325.24 | M113: 1648268.1
C114: Zone substation property maintenance | D114: 54701.38 | E114: 55479.47 | F114: 53134.49 | G114: 31017.65 | H114: 30478.83 | I114: 5599.37 | J114: 164170.36 | K114: 119412.48 | L114: 170457.8 | M114: 116501.45
C115: Public lighting maintenance | D115: 0 | E115: 0 | F115: 0 | G115: 0 | H115: 0 | I115: 0 | J115: 0 | M115: 0
C116: Scada & network control maintenance | D116: 0 | E116: 109771.22 | F116: 234189.38 | G116: 297658.86 | H116: 534355.4 | I116: 721656.08 | J116: 649654.15 | K116: 782246.84 | L116: 700949.23 | M116: 773186.12
C117: Protection systems maintenance | D117: 1146142.33 | E117: 1180539.33 | F117: 1123445.22 | G117: 603142.77 | H117: 1224604.26 | I117: 1632132.48 | J117: 1732614.44 | K117: 2057052.55 | L117: 1873878.24 | M117: 2119325.13
C118: Subtransmission asset maintenance - for dnsps with dual function assets | D118: 0 | E118: 0 | F118: 0 | G118: 0 | H118: 0 | I118: 0 | J118: 0 | M118: 0
C119: Other | D119: 790720.26 | E119: 836906.8 | F119: 951907.32 | G119: 1457717.13 | H119: 1522111.34 | I119: 1211007 | J119: 2468616.55 | K119: 1590766.98 | L119: 1281462.93 | M119: 1889472.27
B120: NON-ROUTINE MAINTENANCE | C120: Pole top, overhead line & service line maintenance | D120: 8849509.6 | E120: 9736048.68 | F120: 7734711.97 | G120: 12535607.76 | H120: 12725103.42 | I120: 11693802.08 | J120: 7159161 | K120: 7809571.34 | L120: 8109455.45 | M120: 6653951.28
C121: Pole inspection and treatment | D121: 16676.6 | E121: 155884.02 | F121: -397.23 | G121: 2737.66 | H121: 25358.96 | I121: 5801.97 | J121: 0 | K121: 1371.24 | M121: 0
C122: Overhead asset inspection | D122: 221400.8 | E122: 180817.57 | F122: 214430.74 | G122: 258848.31 | H122: 187648.01 | I122: 358554.3 | J122: 222776.12 | K122: 242313.75 | L122: 234465.85 | M122: 146905.23
C123: Network underground cable maintenance | D123: 2019923.55 | E123: 2265666.58 | F123: 2322268.08 | G123: 1916401.61 | H123: 1894353.83 | I123: 1447248.76 | J123: 1559026.96 | K123: 1824045.17 | L123: 1589141.47 | M123: 1920200.1
C124: Distribution substation equipment & property maintenance | D124: 53920.29 | E124: 113419.71 | F124: 74411.72 | G124: 813489.82 | H124: 1254577.36 | I124: 580212.19 | J124: 672557.82 | K124: 423510.46 | L124: 382668.88 | M124: 379556.34
C125: Zone substation equipment maintenance | D125: 1265860.52 | E125: 3712319.91 | F125: 4345080.62 | G125: 4858859.6 | H125: 4391538.63 | I125: 3861058.33 | J125: 4714363.61 | K125: 4619902.67 | L125: 4953384.2 | M125: 4796102.08
C126: Zone substation property maintenance | D126: 204965.07 | E126: 272028.16 | F126: 353158.63 | G126: 69613.1 | H126: 36827.03 | I126: 40982.25 | J126: 104630.98 | K126: 176325.32 | L126: 168515.28 | M126: 141164.08
C127: Public lighting maintenance | D127: 1022247.15 | E127: 1025448.15 | F127: 4909.33 | G127: 24558.48 | H127: 19724.6 | I127: 0 | J127: 0 | M127: 0
C128: SCADA & network control maintenance | D128: 0 | E128: 0 | F128: 0 | G128: 579.68 | H128: 0 | I128: 4480.28 | J128: 7068.6 | K128: 78678.28 | L128: 43281.96 | M128: 3961.39
C129: Protection systems maintenance | D129: 0 | E129: 310087.97 | F129: 177130.08 | G129: 151325.38 | H129: 141740.3 | I129: 200087.12 | J129: 310224.29 | K129: 501053.36 | L129: 460017.71 | M129: 337347.84
C130: Subtransmission asset maintenance - for DNSP with dual function assets | D130: 0 | E130: 0 | F130: 0 | G130: 0 | H130: 0 | I130: 0 | J130: 0 | M130: 0
C131: Other | D131: 1232187.76 | E131: 816943.28 | F131: 948259.7 | G131: 1531175.54 | H131: 1155415.92 | I131: 1619661 | J131: 918903.52 | K131: 2539695.57 | L131: 3645634.85 | M131: 1064860.3
B132: OVERHEADS | C132: Network overheads | D132: 105712291.8 | E132: 144596671.3 | F132: 150372297.1 | G132: 166072373.2 | H132: 148237922.5 | I132: 140547770.2 | J132: 129651739.9 | K132: 122544801.4 | L132: 123693959.8 | M132: 124331036.9
C133: Corporate overheads | D133: 16205891.66 | E133: 21293066.28 | F133: 22346166.43 | G133: 25361211.08 | H133: 31323324.97 | I133: 21744963.16 | J133: 23937579.51 | K133: 18911139.77 | L133: 26720182.16 | M133: 22112915.54
B134: AUGMENTATION | C134: Subtransmission substations, switching stations, zone substations | D134: 17565153.34 | E134: 18293319.82 | F134: 20883461.51 | G134: 20045207.8 | H134: 14613511.41 | I134: 10996546.27 | J134: 8390798.477 | K134: 3878415.066 | L134: 3004812.691 | M134: 1933364.222
C135: Subtransmission lines | D135: 5443673.179 | E135: 6531021.809 | F135: 5718848.564 | G135: 6704435.862 | H135: 4677861.204 | I135: 1622721.311 | J135: 3147373.105 | K135: 2927917.804 | L135: 1558433.341 | M135: 686283.4348
C136: HV feeders | D136: 14415255.72 | E136: 15209010.99 | F136: 18082927.81 | G136: 18579923.01 | H136: 18423221.29 | I136: 10288227.11 | J136: 9740882.402 | K136: 5011960.31 | L136: 5539800.973 | M136: 13482158.87
C137: Distribution substations | D137: 6522645.948 | E137: 6385271.671 | F137: 7387811.987 | G137: 4993532.096 | H137: 4230361.114 | I137: 4251416.315 | J137: 2093469.177 | K137: 1453072.743 | L137: 2007240.411 | M137: 5407071.697
C138: LV feeders | D138: 1696605.73 | E138: 711000.8807 | F138: 1126968.607 | G138: 2016967.564 | H138: 1930358.771 | I138: 1037772.651 | J138: 3734383.398 | K138: 1208148.578 | L138: 1247282.866 | M138: 6889398.241
C139: Other assets | D139: 1466791.077 | E139: 2377403.428 | F139: 853197.6396 | G139: 1583915.567 | H139: 1061662.288 | I139: 377844.9063 | J139: 850883.8602 | K139: 10852589.83 | L139: 7374953.431 | M139: 4057830.426
B140: CONNECTIONS | C140: Simple and complex customer connections | D140: 31542586.85 | E140: 25322562.06 | F140: 26636348.37 | G140: 22833855.85 | H140: 19490948.12 | I140: 12744538.54 | J140: 19990535.43 | K140: 26339691.52 | L140: 26801373.13 | M140: 25700277.24
B141: EMERGENCY RESPONSE | C141: Major storms | D141: 3009399 | E141: 541144 | F141: 13567102 | G141: 0 | H141: 10110726 | I141: 1483454 | J141: 4667228.72 | K141: 3782933.21 | L141: 7689325.87 | M141: 5815077.65
C142: Major event days | D142: 987790 | E142: 390608 | F142: 3677443 | G142: 0 | H142: 3850977 | I142: 824807 | J142: 2272097.97 | K142: 1503819.04 | L142: 5281635.59 | M142: 2011669.28
B143: PUBLIC LIGHTING | C143: All public lighting services | D143: 1615175.913 | E143: 1679448.783 | F143: 1536311.773 | G143: 1820483.734 | H143: 1478983.971 | I143: 1697609.901 | J143: 1330445.422 | K143: 1390201.052 | L143: 1491075.903 | M143: 1507315.916
B144: METERING | C144: All metering services | D144: 7748858.836 | E144: 8636395.167 | F144: 10644028.34 | G144: 11762481.82 | H144: 11015053.56 | I144: 9676961.275 | J144: 6531931.372 | K144: 8715689.25 | L144: 9725329.816 | M144: 7342478.62
B145: FEE-BASED SERVICES | C145: All fee-based services | D145: 3033445.992 | E145: 4469002.915 | F145: 3969967.037 | G145: 3839743.845 | H145: 3101080.368 | I145: 3518822.45 | J145: 2891348.19 | K145: 6322948.72 | L145: 7104342.4 | M145: 6892098.65
B146: QUOTED SERVICES | C146: All quoted services | D146: 7588669.315 | E146: 7419519.747 | F146: 7175027.443 | G146: 8800252.323 | H146: 8159233.734 | I146: 8876619.463 | J146: 5646005.005 | K146: 8814191.09 | L146: 12008938.59 | M146: 11902962.65
B147: REPLACEMENT | C147: Poles | D147: 6311563.617 | E147: 7823056.473 | F147: 8096952.57 | G147: 9382473.311 | H147: 10245556.9 | I147: 9096338.632 | J147: 9928064.91 | K147: 9954635.396 | L147: 12118828.25 | M147: 8353755.9
C148: Pole top structures | D148: 2002366.822 | E148: 3252443.206 | F148: 3539823.751 | G148: 4702294.801 | H148: 4862142.66 | I148: 4386209.987 | J148: 5436299.23 | K148: 5585521.774 | L148: 6572679.76 | M148: 4060250.484
C149: Overhead conductors | D149: 2731561.866 | E149: 4096404.605 | F149: 3969629.583 | G149: 4429564.019 | H149: 4521027.308 | I149: 7877181.2 | J149: 4683486.22 | K149: 4620741.332 | L149: 5384045.441 | M149: 3298021.521
C150: Underground cables | D150: 674206.1906 | E150: 2598383.125 | F150: 3016506.355 | G150: 3843545.696 | H150: 3711305.211 | I150: 1400518.787 | J150: 3141728.3 | K150: 2825700.838 | L150: 2553444.401 | M150: 2579257.628
C151: Service lines | D151: 0 | E151: 0 | F151: 0 | G151: 0 | H151: 0 | I151: 0 | J151: 13627683.5 | K151: 839269.0121 | L151: 1179844.782 | M151: 883991.066
C152: Transformers | D152: 1771123.384 | E152: 3277053.08 | F152: 3005305.054 | G152: 4951455.455 | H152: 4588000.899 | I152: 4975006.309 | J152: 6423388.14 | K152: 6196289.032 | L152: 8987791.246 | M152: 7063246.989
C153: Switchgear | D153: 2210275.454 | E153: 4467908.454 | F153: 4819727.809 | G153: 5297584.084 | H153: 6804325.908 | I153: 6722797.28 | J153: 10051040.13 | K153: 10235578.84 | L153: 12873382.29 | M153: 14958527.09
C154: Public lighting | D154: 431563.0411 | E154: 546474.9104 | F154: 685197.1938 | G154: 1105652.688 | H154: 1155755.1 | I154: 492913.081 | J154: 1009843.14 | K154: 1185515.85 | L154: 1617809.029 | M154: 1308280.505
C155: SCADA network control and protection systems | D155: 1156825.995 | E155: 2879854.606 | F155: 1061973.235 | G155: 1012685.447 | H155: 1120464.394 | I155: 3428198.473 | J155: 10510540.29 | K155: 10499284.28 | L155: 10164123.6 | M155: 10056168.98
C156: Other | D156: 0 | E156: 0 | F156: 0 | G156: 0 | H156: 0 | I156: 2762662.691 | J156: 2694595.05 | K156: 5903986.854 | L156: 3794026.204 | M156: -1132930.708
B157: NON-NETWORK EXPENDITURE | C157: IT and communications | D157: 16420136.34 | E157: 21304506.8 | F157: 23947056.43 | G157: 35430892.7 | H157: 32704846.74 | I157: 21885310.42 | J157: 24843240.93 | K157: 23210522.27 | L157: 20589831.92 | M157: 25591768.62
C158: Motor vehicles | D158: 1348786.789 | E158: 1661743.52 | F158: 1882254.471 | G158: 1898927.805 | H158: 1790517.187 | I158: 1618510.75 | J158: 1467810.49 | K158: 1498901.357 | L158: 1428837.764 | M158: 1402936.939
C159: Buildings and property | D159: 1242314.341 | E159: 1448018.054 | F159: 1496822.329 | G159: 1804384.23 | H159: 1539002.726 | I159: 1524609.22 | J159: 1564158.187 | K159: 1537822.264 | L159: 1608634.865 | M159: 1749616.489
C160: Other | D160: 4495652.874 | E160: 4558534.675 | F160: 4222858.89 | G160: 4729262.885 | H160: 4468535.61 | I160: 3804769.009 | J160: 4859013.457 | K160: 4671240.218 | L160: 3741994.369 | M160: 3992200.758
B163: 2.12.3 - CONTRACT EXPENDITURE
D164: EXPENDITURE
D165: Actual ($0's)
D166: =IF(dms_RPT="financial",dms_CRYf_y1,dms_CRYc_y1) -> 2008-09 | E166: =IF(dms_RPT="financial",dms_CRYf_y2,dms_CRYc_y2) -> 2009-10 | F166: =IF(dms_RPT="financial",dms_CRYf_y3,dms_CRYc_y3) -> 2010-11 | G166: =IF(dms_RPT="financial",dms_CRYf_y4,dms_CRYc_y4) -> 2011-12 | H166: =IF(dms_RPT="financial",dms_CRYf_y5,dms_CRYc_y5) -> 2012-13 | I166: =IF(dms_RPT="financial",dms_CRYf_y6,dms_CRYc_y6) -> 2013-14 | J166: =IF(dms_RPT="financial",dms_CRYf_y7,dms_CRYc_y7) -> 2014-15 | K166: =IF(dms_RPT="financial",dms_CRYf_y8,dms_CRYc_y8) -> 2015-16 | L166: =IF(dms_RPT="financial",dms_CRYf_y9,dms_CRYc_y9) -> 2016-17 | M166: =IF(dms_RPT="financial",dms_CRYf_y10,dms_CRYc_y10) -> 2017-18
B167: VEGETATION MANAGEMENT | C167: =IF(ISBLANK(C13)," ",C13) -> Zone 1 | D167: 33480947.41 | E167: 34563746.39 | F167: 34883175.22 | G167: 39775733.4 | H167: 42243096.14 | I167: 53694247.6 | J167: 45644593.07 | K167: 45246324.08 | L167: 44002334.19 | M167: 41579934.48
C168: Zone 2 | D168: 6802362.224 | E168: 6867363.541 | F168: 10490818.09 | G168: 7320854.995 | H168: 5655746.266 | I168: 0 | J168: 0 | K168: 0 | L168: 0 | M168: 0
C169: Zone 3 | D169: 2326451.369 | E169: 2364823.065 | F169: 3013593.695 | G169: 2264511.099 | H169: 2784626.155 | I169: 0 | M169: 0
C170: Zone 4
C171: Zone 5
C172: Zone 6
C173: Zone 7
C174: Zone 8
C175: Zone 9
C176: Zone 10
C177: Zone 11
C178: Zone 12
C179: Zone 13
C180: Zone 14
C181: Zone 15
C182: Zone 16
C183: Zone 17
C184: Zone 18
B185: ROUTINE MAINTENANCE | C185: Pole top, overhead line & service line maintenance | D185: 13422.85 | E185: 37849.46 | F185: 1000 | G185: 37761.34 | H185: 10632.1 | I185: 354684.03 | J185: -79850.39 | K185: 124.95 | L185: 9634.77 | M185: 1062991.02
C186: Pole inspection and treatment | D186: 4954147.48 | E186: 4990570.37 | F186: 4992306.99 | G186: 5379647.42 | H186: 5384740.93 | I186: 5211660.01 | J186: 5438632.61 | K186: 4186281.34 | L186: 4222528.48 | M186: 5456051.78
C187: Overhead asset inspection | D187: 883334.17 | E187: 1424309.49 | F187: 758302.86 | G187: 837650.6 | H187: 1173113.34 | I187: 1713263.21 | J187: 2170386.61 | K187: 1903790.19 | L187: 3675622.53 | M187: 530096.22
C188: Network underground cable maintenance | D188: 0 | E188: 0 | F188: 1051.16 | G188: 7677.27 | H188: 11943.05 | I188: 36546 | J188: 93303.35 | K188: 80993.39 | L188: 128303.29 | M188: 0
C189: Distribution substation equipment & property maintenance | D189: 1976734.32 | E189: 1420710.57 | F189: 556459.46 | G189: 348068.25 | H189: 247113.2 | I189: 378628.01 | J189: 61801.33 | K189: 249473.18 | L189: 541826.26 | M189: 747733.74
C190: Zone substation equipment maintenance | D190: 672732.79 | E190: 243236.54 | F190: 298043.6 | G190: 332557.22 | H190: 433792.51 | I190: 239015.48 | J190: 181222.07 | K190: 248332.87 | L190: 180825.74 | M190: 540711.41
C191: Zone substation property maintenance | D191: 5520 | E191: 420 | F191: 575 | G191: 5674.35 | H191: 167959.75 | I191: 200616.35 | J191: 17477.5 | K191: 38341.76 | L191: 34895.12 | M191: 4863.29
C192: Public lighting maintenance | D192: 0 | E192: 0 | F192: 0 | G192: 0 | H192: 0 | I192: 0 | J192: 0 | M192: 0
C193: Scada & network control maintenance | D193: 0 | E193: 0 | F193: 3124.59 | G193: 10750 | H193: 7079.5 | I193: 8700 | J193: 17783.62 | K193: 117253.97 | L193: -149.3 | M193: 13768.62
C194: Protection systems maintenance | D194: 247.6 | E194: 295 | F194: 29935.56 | G194: 4922.18 | H194: 20654.79 | I194: 11592.02 | J194: 12588.68 | K194: 9715.54 | L194: 1807 | M194: 400
C195: Subtransmission asset maintenance - for dnsps with dual function assets | D195: 0 | E195: 0 | F195: 0 | G195: 0 | H195: 0 | I195: 0 | J195: 0 | M195: 0
C196: Other | D196: 1370789.45 | E196: 1399639.67 | F196: 1189513.63 | G196: 1121040.92 | H196: 429125.63 | I196: 428928 | J196: 155106.07 | K196: 164210.85 | L196: 209400.07 | M196: 572164.23
B197: NON-ROUTINE MAINTENANCE | C197: Pole top, overhead line & service line maintenance | D197: 8111546.36 | E197: 7313484.75 | F197: 5384161.5 | G197: 4627849.52 | H197: 5273858.76 | I197: 6793906.33 | J197: 11329117.12 | K197: 10233455.46 | L197: 4995555.47 | M197: 3193315.37
C198: Pole inspection and treatment | D198: 1131.11 | E198: 394.95 | F198: 0 | G198: 16710259.23 | H198: -4907996.06 | I198: 1945.34 | J198: 0 | K198: 164.8 | M198: 0
C199: Overhead asset inspection | D199: 190338.96 | E199: 470236.8 | F199: 220711.77 | G199: 262226.58 | H199: 165642.49 | I199: 116828.69 | J199: 110613.59 | K199: 204702.45 | L199: 162817.72 | M199: 120885.27
C200: Network underground cable maintenance | D200: 918469.54 | E200: 1364375.52 | F200: 1700808.08 | G200: 1533720.91 | H200: 2304946.18 | I200: 1282672.31 | J200: 1555446.81 | K200: 1285475.41 | L200: 1091012.21 | M200: 1745113.09
C201: Distribution substation equipment & property maintenance | D201: 251397.08 | E201: 386354.36 | F201: 315358.1 | G201: 607061.36 | H201: 667999.76 | I201: 468100.06 | J201: 533509.62 | K201: 257277.91 | L201: 261440.92 | M201: 254513.33
C202: Zone substation equipment maintenance | D202: 181521.97 | E202: 940647.78 | F202: 675819.35 | G202: 788190.82 | H202: 1531604.96 | I202: 1271557.52 | J202: 2405474.5 | K202: 2214978.22 | L202: 1592386.15 | M202: 2444288.52
C203: Zone substation property maintenance | D203: 1186297.23 | E203: 1290099.66 | F203: 1686489.28 | G203: 2034271.68 | H203: 2417378.16 | I203: 1634974.76 | J203: 1520568.82 | K203: 1212766.18 | L203: 905474.29 | M203: 456094.03
C204: Public lighting maintenance | D204: 5094586.82 | E204: 4905373.62 | F204: 173.88 | G204: 12954 | H204: 367.91 | I204: 0 | J204: 0 | M204: 0
C205: SCADA & network control maintenance | D205: 0 | E205: 0 | F205: 0 | G205: 28760.9 | H205: 0 | I205: 2620 | J205: 0 | K205: 0 | M205: 0
C206: Protection systems maintenance | D206: 0 | E206: 860.92 | F206: 249.33 | G206: 0 | H206: 1909.45 | I206: 6921 | J206: 3739.89 | K206: 2349.24 | L206: 974.13 | M206: 1314.37
... 256 more rows
